Workbook

Sheet 참조연습
E2: 과목수 | F2: 2
B4: 이름 | C4: 국어 | D4: 영어 | E4: 합계 | F4: 평균
B5: 보라돌이 | C5: 60 | D5: 60 | E5: =C5+D5 -> 120 | F5: =E5/$F$2 -> 60
B6: 뚜비 | C6: 90 | D6: 90 | E6: =C6+D6 -> 180 | F6: =E6/$F$2 -> 90
B7: 나나 | C7: 70 | D7: 70 | E7: =C7+D7 -> 140 | F7: 70
B8: 뽀 | C8: 80 | D8: 80 | E8: =C8+D8 -> 160 | F8: 80
B11: C6+D6 | D11: =B4 -> 이름 | E11: =$B$4 -> 이름 | F11: =E5/$F$2 -> 60
B12: C6+D7 | D12: =B5 -> 보라돌이 | E12: =$B$4 -> 이름 | F12: =E6/$F$2 -> 90
B13: C6+D8 | D13: 뚜비 | E13: 이름 | F13: 70
B14: C6+D9 | D14: 나나 | E14: 이름 | F14: 80
B15: C6+D10 | D15: 뽀 | E15: 이름 | F15: 0

Sheet 계산(예제)
A1: [표1] | B1: 품목별 판매 현황 | F1: [표2] | G1: 고공 낙하 회수별 인원
A2: 품목명 | B2: 판매수량 | C2: 판매금액 | D2: 이익금액 | F2: 낙하회수 | G2: 인원수 | H2: 누적인원수 | I2: 누계비율
A3: 샤프 | B3: 327 | C3: =B3*3000 -> 981,000 | D3: =C3*$C$9 -> 245,250 | F3: 3000이상 | G3: 5 | H3: 5 | I3: =H3/$G$8 -> 10%
A4: 연필 | B4: 370 | C4: =B4*350 -> 129,500 | D4: =C4*$C$9 -> 32,375 | F4: 1000이상 | G4: 20 | H4: 25 | I4: =H4/$G$8 -> 50%
A5: 만년필 | B5: 450 | C5: =B5*6500 -> 2,925,000 | D5: 731,250 | F5: 500이상 | G5: 15 | H5: 40 | I5: 80%
A6: 색연필 | B6: 900 | C6: =B6*340 -> 306,000 | D6: 76,500 | F6: 100이상 | G6: 7 | H6: 47 | I6: 94%
A7: 볼펜 | B7: 789 | C7: =B7*220 -> 173,580 | D7: 43,395 | F7: 10이상 | G7: 3 | H7: 50 | I7: 100%
A8: 플러스펜 | B8: 670 | C8: =B8*550 -> 368,500 | D8: 92,125 | F8: 합계 | G8: =SUM(G3:G7) -> 50
B9: 마진율 | C9: 25%
G10: [표4] | H10: 펜던트 판매 현황
A11: [표3] | B11: 사원별 수당지급현황 | G11: 월 | H11: 판매량 | I11: 매출총액
A12: 성명 | B12: 근무년수 | C12: 기본급 | D12: 상여비율 | E12: 수당 | G12: 1월 | H12: 75 | I12: =(H12*$G$20)*(1-$H$20) -> 15,000,000
A13: 홍기재 | B13: 15 | C13: 2,550,000 | D13: 15% | E13: =C13+C13*(D13+$C$18) -> 3,085,500 | G13: 2월 | H13: 65 | I13: =(H13*$G$20)*(1-$H$20) -> 13,000,000
A14: 이민찬 | B14: 9 | C14: 1,500,000 | D14: 10% | E14: =C14+C14*(D14+$C$18) -> 1,740,000 | G14: 3월 | H14: 56 | I14: 11,200,000
A15: 가영수 | B15: 10 | C15: 2,000,000 | D15: 12% | E15: 2,360,000 | G15: 4월 | H15: 76 | I15: 15,200,000
A16: 류민완 | B16: 8 | C16: 2,200,000 | D16: 10% | E16: 2,552,000 | G16: 5월 | H16: 56 | I16: 11,200,000
A17: 강술래 | B17: 4 | C17: 1,300,000 | D17: 7% | E17: 1,469,000 | G17: 6월 | H17: 85 | I17: 17,000,000
A18: 추가 상여율 | C18: 6%
G19: 단가 | H19: 할인율
A20: [표5] | B20: 도서 포인트 관리 | G20: 250000 | H20: 20%
A21: 대출자 | B21: 대출권수 | C21: 연체권수 | D21: 포인트 총계
A22: 이원섭 | B22: 50 | C22: 23 | D22: =B22*$C$28+C22*$C$29 -> 4.12
A23: 최준기 | B23: 72 | C23: 14 | D23: =B23*$C$28+C23*$C$29 -> 7.08
A24: 구현서 | B24: 85 | C24: 29 | D24: 7.61
A25: 안유경 | B25: 15 | C25: 2 | D25: 1.53
A26: 강흥석 | B26: 78 | C26: 7 | D26: 8.16
A27: 조용욱 | B27: 56 | C27: 5 | D27: 5.86
A28: 대출포인트 | C28: 11%
A29: 연체포인트 | C29: -6%

Sheet 계산(결과)
A1: [표1] | B1: 품목별 판매 현황 | F1: [표2] | G1: 고공 낙하 회수별 인원
A2: 품목명 | B2: 판매수량 | C2: 판매금액 | D2: 이익금액 | F2: 낙하회수 | G2: 인원수 | H2: 누적인원수 | I2: 누계비율
A3: 샤프 | B3: 327 | C3: =B3*3000 -> 981,000 | D3: =C3*$C$9 -> 245,250 | F3: 3000이상 | G3: 5 | H3: 5 | I3: =H3/$G$8 -> 10%
A4: 연필 | B4: 370 | C4: =B4*350 -> 129,500 | D4: =C4*$C$9 -> 32,375 | F4: 1000이상 | G4: 20 | H4: 25 | I4: =H4/$G$8 -> 50%
A5: 만년필 | B5: 450 | C5: =B5*6500 -> 2,925,000 | D5: 731,250 | F5: 500이상 | G5: 15 | H5: 40 | I5: 80%
A6: 색연필 | B6: 900 | C6: =B6*340 -> 306,000 | D6: 76,500 | F6: 100이상 | G6: 7 | H6: 47 | I6: 94%
A7: 볼펜 | B7: 789 | C7: =B7*220 -> 173,580 | D7: 43,395 | F7: 10이상 | G7: 3 | H7: 50 | I7: 100%
A8: 플러스펜 | B8: 670 | C8: =B8*550 -> 368,500 | D8: 92,125 | F8: 합계 | G8: =SUM(G3:G7) -> 50
B9: 마진율 | C9: 25%
G10: [표4] | H10: 펜던트 판매 현황
A11: [표3] | B11: 사원별 수당지급현황 | G11: 월 | H11: 판매량 | I11: 매출총액
A12: 성명 | B12: 근무년수 | C12: 기본급 | D12: 상여비율 | E12: 수당 | G12: 1월 | H12: 75 | I12: =(H12*$G$20)*(1-$H$20) -> 15,000,000
A13: 홍기재 | B13: 15 | C13: 2,550,000 | D13: 15% | E13: =C13+C13*(D13+$C$18) -> 3,085,500 | G13: 2월 | H13: 65 | I13: 13,000,000
A14: 이민찬 | B14: 9 | C14: 1,500,000 | D14: 10% | E14: =C14+C14*(D14+$C$18) -> 1,740,000 | G14: 3월 | H14: 56 | I14: 11,200,000
A15: 가영수 | B15: 10 | C15: 2,000,000 | D15: 12% | E15: 2,360,000 | G15: 4월 | H15: 76 | I15: 15,200,000
A16: 류민완 | B16: 8 | C16: 2,200,000 | D16: 10% | E16: 2,552,000 | G16: 5월 | H16: 56 | I16: 11,200,000
A17: 강술래 | B17: 4 | C17: 1,300,000 | D17: 7% | E17: 1,469,000 | G17: 6월 | H17: 85 | I17: 17,000,000
A18: 추가 상여율 | C18: 6%
G19: 단가 | H19: 할인율
A20: [표5] | B20: 도서 포인트 관리 | G20: 250000 | H20: 20%
A21: 대출자 | B21: 대출권수 | C21: 연체권수 | D21: 포인트 총계
A22: 이원섭 | B22: 50 | C22: 23 | D22: =B22*$C$28+C22*$C$29 -> 4.12
A23: 최준기 | B23: 72 | C23: 14 | D23: 7.08
A24: 구현서 | B24: 85 | C24: 29 | D24: 7.61
A25: 안유경 | B25: 15 | C25: 2 | D25: 1.53
A26: 강흥석 | B26: 78 | C26: 7 | D26: 8.16
A27: 조용욱 | B27: 56 | C27: 5 | D27: 5.86
A28: 대출포인트 | C28: 11%
A29: 연체포인트 | C29: -6%

Sheet 날짜1(예제)
A1: 오늘의 날짜 | B1: =TODAY() -> 2016-11-28 | D1: =today() | E1: 날짜만
A2: 오늘의 날짜와 시간 | B2: =NOW() -> 2016-11-28T19:10:44.770 | D2: =now() | E2: 날짜와 시간을 동시에
A4: 표시 부분 | B4: 결과
A5: 연도(YEAR) | B5: =YEAR(B1) -> 2016 | D5: =YEAR(B1) | E5: 연추출. ()안에 반드시 날짜값이 있어야함 | F5: =YEAR(TODAY())
A6: 월(MONTH) | B6: =MONTH(B1) -> 11 | D6: =MONTH(B1) | E6: 월추출 | F6: 식의 우선순위 :
A7: 일(DAY) | B7: =DAY(B1) -> 28 | D7: =DAY(B1) | E7: 일추출 | F7: 안에서 밖으로 실행
A8: 시(HOUR) | B8: =HOUR(B2) -> 19 | E8: 시간이 있는 NOW()이용. TODAY는 불가 | F8: 결론:
A9: 분(MINUTE) | F9: 밖에 있는 함수는
A10: 초(SECOND) | F10: 안에 있는 식의 결과만 본다
A11: 날짜(DATE) | B11: =DATE(B5,B6,B7) -> 2016-11-28 | D11: =DATE(YEAR(TODAY()),MONTH(TODAY()),DAY(TODAY())) -> 2016-11-28 | E11: 날짜계산할 때 (연, 월) | F11: 따라서 중첩함수 가능
A12: 시간(TIME) | E12: 시간 계산할 때 (시, 분)
A13: 요일(WEEKDAY) | B13: =CHOOSE(WEEKDAY(B11,2),"월","화","수","목","금","토","일") -> 월 | C13: =CHOOSE(WEEKDAY(B11,1),"일","월","화","수","목","금","토","일") -> 월
A14: 요일(WEEKDAY)-서식
A15: 일련번호(DATEVALUE)
A18: *DATE함수의 쓰임
A19: 공사시작 | B19: 공사기간(개월) | C19: 완공일
A20: 2011-11-11 | B20: 27 | C20: =DATE(YEAR(A20),MONTH(A20)+B20,DAY(A20)) -> 2014-02-11
C21: =EDATE(A20,B20) -> 2014-02-11
B25: 2016-11-01 | C25: 2016-11-24 | D25: 2016-11-25
A26: DAYS360(시작날짜,끝날짜) | B26: 일수 차를 구할 때이용 | C26: =DAYS360(C25,D25) -> 1 | D26: =D25-C25 -> 1
A27: EDATE | B27: N달 전/후의 날짜 | C27: =EDATE(C25,1) -> 2016-12-24
A28: WORKDAY | B28: 주말을 제외한 N일 전/후의 날짜 | C28: =WORKDAY(B25,10) -> 2016-11-15

Sheet 날짜1(결과)
A1: 오늘의 날짜 | B1: =TODAY() -> 2016-11-28
A2: 오늘의 날짜와 시간 | B2: =NOW() -> 2016-11-28T19:10:44.770
A4: 표시 부분 | B4: 결과
A5: 연도(YEAR) | B5: =YEAR(B2) -> 2016
A6: 월(MONTH) | B6: =MONTH(B2) -> 11
A7: 일(DAY) | B7: =DAY(B2) -> 28
A8: 시(HOUR) | B8: =HOUR(B2) -> 19
A9: 분(MINUTE) | B9: =MINUTE(B2) -> 10
A10: 초(SECOND) | B10: =SECOND(B2) -> 45
A11: 날짜(DATE) | B11: =DATE(B5,B6,B7) -> 2016-11-28
A12: 시간(TIME) | B12: =TIME(B8,B9,B10) -> 19:10:45
A13: 요일(WEEKDAY) | B13: =WEEKDAY(B2) -> 2
A14: 요일(WEEKDAY)-서식 | B14: =WEEKDAY(B2) -> 2
A15: 일련번호(DATEVALUE) | B15: =DATEVALUE("2017-8-15") -> 42962

Sheet 날짜2(예제)
A2: [표1]
A3: 구입일 | B3: 구입품목 | C3: 가격 | D3: 결제일1(EDATE) | E3: 결제일2(EOMONTH)
A4: 2017-05-01 | B4: 침구청소기 | C4: 170,000
A5: 2017-05-15 | B5: 냉장고 | C5: 1,200,000
A6: 2017-06-02 | B6: 청소기 | C6: 500,000
A7: 2017-06-20 | B7: 제습기 | C7: 380,000
A8: 2017-07-05 | B8: 에어컨 | C8: 1,500,000
A9: 2017-07-18 | B9: 선풍기 | C9: 120,000
A11: [표2]
A12: 주문일 | B12: 배송기간 | C12: 배송 예정일
A13: 2017-10-09 | B13: 3
A14: 2017-10-20 | B14: 2
A15: 2017-10-31 | B15: 5
A16: 2017-11-05 | B16: 3
A17: 2017-11-20 | B17: 4
A19: [표3]
A20: 대출일 | B20: 상환일 | C20: 대출 기간
A21: 2017-01-05 | B21: 2017-05-03
A22: 2017-01-20 | B22: 2017-06-20
A23: 2017-02-12 | B23: 2017-08-14
A24: 2017-02-25 | B24: 2017-09-20
A25: 2017-03-05 | B25: 2017-10-30
A26: 2017-03-18 | B26: 2017-12-30

Sheet 날짜2(결과)
A2: [표1]
A3: 구입일 | B3: 구입품목 | C3: 가격 | D3: 결제일1(EDATE) | E3: 결제일2(EOMONTH)
A4: 2017-05-01 | B4: 침구청소기 | C4: 170,000 | D4: =EDATE(A4,3) -> 2017-08-01 | E4: =EOMONTH(A4,3) -> 2017-08-31
A5: 2017-05-15 | B5: 냉장고 | C5: 1,200,000 | D5: =EDATE(A5,3) -> 2017-08-15 | E5: =EOMONTH(A5,3) -> 2017-08-31
A6: 2017-06-02 | B6: 청소기 | C6: 500,000 | D6: 2017-09-02 | E6: 2017-09-30
A7: 2017-06-20 | B7: 제습기 | C7: 380,000 | D7: 2017-09-20 | E7: 2017-09-30
A8: 2017-07-05 | B8: 에어컨 | C8: 1,500,000 | D8: 2017-10-05 | E8: 2017-10-31
A9: 2017-07-18 | B9: 선풍기 | C9: 120,000 | D9: 2017-10-18 | E9: 2017-10-31
A11: [표2]
A12: 주문일 | B12: 배송기간 | C12: 배송 예정일
A13: 2017-10-09 | B13: 3 | C13: =WORKDAY(A13,B13) -> 2017-10-12
A14: 2017-10-20 | B14: 2 | C14: =WORKDAY(A14,B14) -> 2017-10-24
A15: 2017-10-31 | B15: 5 | C15: 2017-11-07
A16: 2017-11-05 | B16: 3 | C16: 2017-11-08
A17: 2017-11-20 | B17: 4 | C17: 2017-11-24
A19: [표3]
A20: 대출일 | B20: 상환일 | C20: 대출 기간
A21: 2017-01-05 | B21: 2017-05-03 | C21: =YEARFRAC(A21,B21,1) -> 32%
A22: 2017-01-20 | B22: 2017-06-20 | C22: =YEARFRAC(A22,B22,1) -> 41%
A23: 2017-02-12 | B23: 2017-08-14 | C23: 50%
A24: 2017-02-25 | B24: 2017-09-20 | C24: 57%
A25: 2017-03-05 | B25: 2017-10-30 | C25: 65%
A26: 2017-03-18 | B26: 2017-12-30 | C26: 79%

Sheet 논리(예제)
A1: [표1] | F1: [표2]
A2: 수험번호 | B2: 이름 | C2: 점수 | D2: 평가 | F2: 수험번호 | G2: 성명 | H2: 최종성적 | I2: 부서배치
A3: 1001 | B3: 이나영 | C3: 78 | D3: =IF(C3>=90,"A",IF(C3>=80,"B",IF(C3>=70,"C",IF(C3>=60,"D","F")))) -> C | F3: 1001 | G3: 오나라 | H3: 95 | I3: =H3>=90 -> TRUE
A4: 1002 | B4: 추영조 | C4: 65 | D4: =IF(C4>=90,"A",IF(C4>=80,"B",IF(C4>=70,"C",IF(C4>=60,"D","F")))) -> D | F4: 1002 | G4: 유채화 | H4: 74
A5: 1003 | B5: 탁수민 | C5: 80 | D5: B | F5: 1003 | G5: 김사랑 | H5: 85
A6: 1004 | B6: 강전한 | C6: 90 | D6: A | F6: 1004 | G6: 한나리 | H6: 88
A7: 1005 | B7: 김이중 | C7: 52 | D7: F | F7: 1005 | G7: 조절해 | H7: 60
A8: 1006 | B8: 전대철 | C8: 42 | D8: F | F8: 1006 | G8: 사오정 | H8: 92
A9: 1007 | B9: 사은봉 | C9: 80 | D9: B | F9: 1007 | G9: 금나라 | H9: 72
A10: 1008 | B10: 노영철 | C10: 69 | D10: D
A11: 1009 | B11: 면도영 | C11: 75 | D11: C
A13: [표3] | F13: [표4]
A14: 직원코드 | B14: 근무년수 | C14: 판매부수 | D14: 승진여부 | F14: 연수번호 | G14: 성명 | H14: 컴일 | I14: 시트 | J14: 평가
A15: 1-K001 | B15: 10 | C15: 100,000 | D15: =IF(AND(B15>=15,C15>=100000),"승진"," ") ->  | F15: 2002001 | G15: 강구석 | H15: 77 | I15: 86 | J15: =IF(OR(H15>=85,I15>=85),"이수"," ") -> 이수
A16: 1-K002 | B16: 17 | C16: 150,000 | D16: =IF(AND(B16>=15,C16>=100000),"승진"," ") -> 승진 | F16: 2002002 | G16: 이지나 | H16: 56 | I16: 100 | J16: =IF(OR(H16>=85,I16>=85),"이수"," ") -> 이수
A17: 1-K003 | B17: 15 | C17: 50,000 | F17: 2002003 | G17: 남인성 | H17: 76 | I17: 84
A18: 1-K004 | B18: 25 | C18: 65,000 | F18: 2002004 | G18: 오지혜 | H18: 56 | I18: 78
A19: 2-K001 | B19: 15 | C19: 134,000 | D19: 승진 | F19: 2002005 | G19: 류민철 | H19: 88 | I19: 96 | J19: 이수
A20: 2-K002 | B20: 9 | C20: 74,000 | F20: 2002006 | G20: 김동석 | H20: 78 | I20: 56
A21: 2-K003 | B21: 12 | C21: 95,000 | F21: 2002007 | G21: 사인구 | H21: 67 | I21: 78
F22: 2002008 | G22: 푸영아 | H22: 100 | I22: 86 | J22: 이수
A23: [표5] | F23: 2002009 | G23: 한남석 | H23: 42 | I23: 56
A24: 성명 | B24: 기본급 | C24: 가족수당
C25: 인원 | D25: 금액
A26: 이세민 | B26: 1,850,000 | C26: 2 | D26: =IFERROR(C26*100000,"입력오류") -> 200,000
A27: 이태건 | B27: 1,570,000 | C27: 1 | D27: =IFERROR(C27*100000,"입력오류") -> 100,000
A28: 오유진 | B28: 1,330,000 | C28: 2 | D28: 200,000
A29: 김주원 | B29: 1,420,000 | C29: 2 | D29: 200,000
A30: 김슬기 | B30: 1,100,000 | C30: 없음 | D30: 입력오류
A31: 황지호 | B31: 1,390,000 | C31: 1 | D31: 100,000
A32: 임효진 | B32: 1,240,000 | C32: 없음 | D32: 입력오류
A33: 김종욱 | B33: 1,480,000 | C33: 2 | D33: 200,000
A34: 최혁재 | B34: 1,350,000 | C34: 0 | D34: 0
A41: A | B41: > | C41: B
A42: 대상값 | C42: 제시값
A43: TRUE | C43: FALSE
A44: 참 | C44: 거짓
A45: 1 | C45: 0 | D45: 2진수

Sheet 논리(결과)
A1: [표1] | F1: [표2]
A2: 수험번호 | B2: 이름 | C2: 점수 | D2: 평가 | F2: 수험번호 | G2: 성명 | H2: 최종성적 | I2: 부서배치
A3: 1001 | B3: 이나영 | C3: 78 | D3: =IF(C3>=70,"합격","불합격") -> 합격 | F3: 1001 | G3: 오나라 | H3: 95 | I3: =IF(H3>=90,"기획부",IF(H3>=80,"총무부","영업부")) -> 기획부
A4: 1002 | B4: 추영조 | C4: 65 | D4: =IF(C4>=70,"합격","불합격") -> 불합격 | F4: 1002 | G4: 유채화 | H4: 74 | I4: =IF(H4>=90,"기획부",IF(H4>=80,"총무부","영업부")) -> 영업부
A5: 1003 | B5: 탁수민 | C5: 80 | D5: 합격 | F5: 1003 | G5: 김사랑 | H5: 85 | I5: 총무부
A6: 1004 | B6: 강전한 | C6: 90 | D6: 합격 | F6: 1004 | G6: 한나리 | H6: 88 | I6: 총무부
A7: 1005 | B7: 김이중 | C7: 52 | D7: 불합격 | F7: 1005 | G7: 조절해 | H7: 60 | I7: 영업부
A8: 1006 | B8: 전대철 | C8: 42 | D8: 불합격 | F8: 1006 | G8: 사오정 | H8: 92 | I8: 기획부
A9: 1007 | B9: 사은봉 | C9: 80 | D9: 합격 | F9: 1007 | G9: 금나라 | H9: 72 | I9: 영업부
A10: 1008 | B10: 노영철 | C10: 69 | D10: 불합격
A11: 1009 | B11: 면도영 | C11: 75 | D11: 합격
A13: [표3] | F13: [표4]
A14: 직원코드 | B14: 근무년수 | C14: 판매부수 | D14: 승진여부 | F14: 연수번호 | G14: 성명 | H14: 컴일 | I14: 시트 | J14: 평가
A15: 1-K001 | B15: 10 | C15: 100,000 | D15: =IF(AND(B15>=15,C15>=100000),"승진"," ") ->  | F15: 2002001 | G15: 강구석 | H15: 77 | I15: 86 | J15: =IF(OR(H15>=85,I15>=85),"이수","") -> 이수
A16: 1-K002 | B16: 17 | C16: 150,000 | D16: =IF(AND(B16>=15,C16>=100000),"승진"," ") -> 승진 | F16: 2002002 | G16: 이지나 | H16: 56 | I16: 100 | J16: =IF(OR(H16>=85,I16>=85),"이수","") -> 이수
A17: 1-K003 | B17: 15 | C17: 50,000 | F17: 2002003 | G17: 남인성 | H17: 76 | I17: 84
A18: 1-K004 | B18: 25 | C18: 65,000 | F18: 2002004 | G18: 오지혜 | H18: 56 | I18: 78
A19: 2-K001 | B19: 15 | C19: 134,000 | D19: 승진 | F19: 2002005 | G19: 류민철 | H19: 88 | I19: 96 | J19: 이수
A20: 2-K002 | B20: 9 | C20: 74,000 | F20: 2002006 | G20: 김동석 | H20: 78 | I20: 56
A21: 2-K003 | B21: 12 | C21: 95,000 | F21: 2002007 | G21: 사인구 | H21: 67 | I21: 78
F22: 2002008 | G22: 푸영아 | H22: 100 | I22: 86 | J22: 이수
A23: [표5] | F23: 2002009 | G23: 한남석 | H23: 42 | I23: 56
A24: 성명 | B24: 기본급 | C24: 가족수당
C25: 인원 | D25: 금액
A26: 이세민 | B26: 1,850,000 | C26: 2 | D26: =IFERROR(C26*100000,"입력오류") -> 200,000
A27: 이태건 | B27: 1,570,000 | C27: 1 | D27: =IFERROR(C27*100000,"입력오류") -> 100,000
A28: 오유진 | B28: 1,330,000 | C28: 2 | D28: 200,000
A29: 김주원 | B29: 1,420,000 | C29: 2 | D29: 200,000
A30: 김슬기 | B30: 1,100,000 | C30: 없음 | D30: 입력오류
A31: 황지호 | B31: 1,390,000 | C31: 1 | D31: 100,000
A32: 임효진 | B32: 1,240,000 | C32: 없음 | D32: 입력오류
A33: 김종욱 | B33: 1,480,000 | C33: 2 | D33: 200,000
A34: 최혁재 | B34: 1,350,000 | C34: 0 | D34: 0

Sheet 데이터베이스1(예제)
B2: 고객ID | C2: 성명 | D2: 고객구분 | E2: 가입일 | F2: 거래횟수 | G2: 총거래금액 | I2: 고객구분
B3: T001 | C3: 우병배 | D3: 일반 | E3: 2017-05-06 | F3: 12 | G3: 680,000
B4: T002 | C4: 표명규 | D4: 골드 | E4: 2017-07-15 | F4: 5 | G4: 520,000
B5: T003 | C5: 손미선 | D5: 우대 | E5: 2017-07-21 | F5: 18 | G5: 165,000
B6: T004 | C6: 윤연숙 | D6: 우대 | E6: 2017-08-20 | F6: 24 | G6: 438,000
B7: T005 | C7: 박찬우 | D7: 골드 | E7: 2017-08-21 | F7: 13 | G7: 527,000
B8: T006 | C8: 안순일 | D8: 일반 | E8: 2017-09-15 | F8: 15 | G8: 350,000
B9: T007 | C9: 이경희 | D9: 일반 | E9: 2017-09-18 | F9: 9 | G9: 127,000
B10: T008 | C10: 황명길 | D10: 골드 | E10: 2017-09-25 | F10: 15 | G10: 628,000
B11: T009 | C11: 박연이 | D11: 우대 | E11: 2017-10-05 | F11: 10 | G11: 715,000
B12: T010 | C12: 김청수 | D12: 일반 | E12: 2017-10-12 | F12: 24 | G12: 357,000
B13: T011 | C13: 임순정 | D13: 골드 | E13: 2017-10-19 | F13: 21 | G13: 495,000
G14: =DAVERAGE(B2:G13,G2,I2:I3) -> 454727.2727
B16: 고객구분 | C16: 총거래횟수 | D16: 평균금액 | E16: 최고금액 | F16: 최소금액 | G16: 회원수
B17: 골드 | C17: =DSUM(B2:G13,5,B16:B17) -> 54 | D17: =DAVERAGE(B2:G13,6,B16:B17) -> 542,500 | E17: =DMAX(B2:G13,G2,B16:B17) -> 628,000 | F17: =DMIN(B2:G13,G2,B16:B17) -> 495,000 | G17: =DCOUNT(B2:G13,F2,B16:B17) -> 4
B20: 고객ID | C20: 성명 | D20: 고객구분 | E20: 가입일 | F20: 거래횟수 | G20: 총거래금액
B21: T005 | C21: =DGET($B$2:$G$13,C2,$B$20:$B$21) -> 박찬우 | D21: =DGET($B$2:$G$13,D2,$B$20:$B$21) -> 골드 | E21: 2017-08-21 | F21: 13 | G21: ₩527,000

Sheet 데이터베이스1(결과)
B2: 고객ID | C2: 성명 | D2: 고객구분 | E2: 가입일 | F2: 거래횟수 | G2: 총거래금액
B3: T001 | C3: 우병배 | D3: 일반 | E3: 2017-05-06 | F3: 12 | G3: 680,000
B4: T002 | C4: 표명규 | D4: 골드 | E4: 2017-07-15 | F4: 5 | G4: 520,000
B5: T003 | C5: 손미선 | D5: 우대 | E5: 2017-07-21 | F5: 18 | G5: 165,000
B6: T004 | C6: 윤연숙 | D6: 우대 | E6: 2017-08-20 | F6: 24 | G6: 438,000
B7: T005 | C7: 박찬우 | D7: 골드 | E7: 2017-08-21 | F7: 13 | G7: 527,000
B8: T006 | C8: 안순일 | D8: 일반 | E8: 2017-09-15 | F8: 15 | G8: 350,000
B9: T007 | C9: 이경희 | D9: 일반 | E9: 2017-09-18 | F9: 9 | G9: 127,000
B10: T008 | C10: 황명길 | D10: 골드 | E10: 2017-09-25 | F10: 15 | G10: 628,000
B11: T009 | C11: 박연이 | D11: 우대 | E11: 2017-10-05 | F11: 10 | G11: 715,000
B12: T010 | C12: 김청수 | D12: 일반 | E12: 2017-10-12 | F12: 24 | G12: 357,000
B13: T011 | C13: 임순정 | D13: 골드 | E13: 2017-10-19 | F13: 21 | G13: 495,000
B16: 고객구분 | C16: 총거래횟수 | D16: 평균금액 | E16: 최고금액 | F16: 최소금액 | G16: 회원수
B17: 골드 | C17: =DSUM(B2:G13,5,B16:B17) -> 54 | D17: =DAVERAGE(B2:G13,6,B16:B17) -> 542,500 | E17: =DMAX(B2:G13,6,B16:B17) -> 628,000 | F17: =DMIN(B2:G13,6,B16:B17) -> 495,000 | G17: =DCOUNT(B2:G13,6,B16:B17) -> 4
B20: 고객ID | C20: 성명 | D20: 고객구분 | E20: 가입일 | F20: 거래횟수 | G20: 총거래금액
B21: T005 | C21: =DGET($B$2:$G$13,C2,$B$20:$B$21) -> 박찬우 | D21: =DGET($B$2:$G$13,D2,$B$20:$B$21) -> 골드 | E21: =DGET($B$2:$G$13,E2,$B$20:$B$21) -> 2017-08-21 | F21: =DGET($B$2:$G$13,F2,$B$20:$B$21) -> 13 | G21: =DGET($B$2:$G$13,G2,$B$20:$B$21) -> 527,000

Sheet 데이터베이스2(예제)
A1: [표1] | F1: [표2]
A2: 성명 | B2: 응시구분 | C2: 1차 | D2: 2차 | F2: 대리점 | G2: 단가 | H2: 출고수량 | I2: 판매금액
A3: 한가람 | B3: P-1 | C3: 79 | D3: 97 | F3: 금성물산 | G3: 1,673 | H3: 40 | I3: =G3*H3 -> 66,920
A4: 김은철 | B4: P-2 | C4: 77 | D4: 89 | F4: 우주상사 | G4: 1,506 | H4: 58 | I4: 87,348
A5: 고사리 | B5: P-1 | C5: 56 | D5: 76 | F5: 신안공업 | G5: 1,126 | H5: 91 | I5: 102,466
A6: 박은별 | B6: P-2 | C6: 88 | D6: 80 | F6: 삼성상사 | G6: 2,953 | H6: 99 | I6: 292,347
A7: 성준서 | B7: P-1 | C7: 88 | D7: 93 | F7: 금성물산 | G7: 1,423 | H7: 54 | I7: 76,842
A8: 이성연 | B8: P-2 | C8: 91 | D8: 67 | F8: 신안공업 | G8: 1,338 | H8: 40 | I8: 53,520
A9: 박한나 | B9: P-1 | C9: 85 | D9: 56 | F9: 금성물산 | G9: 2,310 | H9: 73 | I9: 168,630
A10: 이미리 | B10: P-1 | C10: 76 | D10: 89 | F10: 종로상사 | G10: 1,937 | H10: 90 | I10: 174,330
A12: P-1의 1차 평균 | D12: =DAVERAGE(A2:D10,C2,B2:B3) -> 76.8 | F12: 금성물산 판매금액 합계 | I12: =DSUM(F2:I10,I2,F2:F3) -> 312,392
A14: [표3] | F14: [표4]
A15: 성명 | B15: 부서 | C15: 1/4분기 | D15: 2/4분기 | F15: 소속 | G15: 기사 | H15: 우승횟수 | I15: 준우승횟수
A16: 김남이 | B16: 영업1부 | C16: 557 | D16: 345 | F16: 상공 | G16: 김기호 | H16: 14 | I16: 20
A17: 이지영 | B17: 영업2부 | C17: 476 | D17: 513 | F17: 대한 | G17: 최종명 | H17: 2 | I17: 13
A18: 하나미 | B18: 영업1부 | C18: 231 | D18: 474 | F18: 대한 | G18: 나필승 | H18: 3 | I18: 3
A19: 임진태 | B19: 영업2부 | C19: 175 | D19: 453 | F19: 서울 | G19: 고대로 | H19: 8 | I19: 5
A20: 현민대 | B20: 영업2부 | C20: 834 | D20: 401 | F20: 상공 | G20: 정상승 | H20: 5 | I20: 3
A21: 한민국 | B21: 영업1부 | C21: 597 | D21: 347 | F21: 대한 | G21: 채고다 | H21: 15 | I21: 5
A23: 부서 | B23: 1/4분기 | C23: 2/4분기 | F23: 대한팀 우승횟수 | H23: 소속 | I23: 조건
A24: 영업2부 | B24: =DMAX($A$15:$D$21,C15,$A$23:$A$24) -> 834 | C24: =DMAX($A$15:$D$21,D15,$A$23:$A$24) -> 513 | F24: =DCOUNT(F15:I21,H15,H23:I24) -> 2 | H24: 대한 | I24: =I16>=5 -> TRUE
A26: [표5] | F26: [표6]
A27: 학과 | B27: 학년 | C27: 성명 | D27: 평가점수 | F27: 직원코드 | G27: 1사분기 | H27: 2사분기 | I27: 상반기합계
A28: 디자인 | B28: 1 | C28: 고승수 | D28: 465 | F28: 1-J001 | G28: 92,733 | H28: 46,573 | I28: =G28+H28 -> 139,306
A29: 미디어 | B29: 2 | C29: 구만리 | D29: 604 | F29: 1-J002 | G29: 66,191 | H29: 60,400 | I29: 126,591
A30: 미디어 | B30: 3 | C30: 노상식 | D30: 383 | F30: 1-J003 | G30: 14,809 | H30: 13,827 | I30: 28,636
A31: 디자인 | B31: 2 | C31: 나잘난 | D31: 465 | F31: 1-J004 | G31: 51,382 | H31: 46,573 | I31: 97,955
A32: 미디어 | B32: 1 | C32: 마고수 | D32: 382 | F32: 2-J001 | G32: 19,663 | H32: 17,382 | I32: 37,045
A33: 미디어 | B33: 2 | C33: 박흥철 | D33: 391 | F33: 2-J002 | G33: 22,053 | H33: 49,102 | I33: 71,155
A34: 디자인 | B34: 3 | C34: 사수해 | D34: 572 | F34: 2-J003 | G34: 23,900 | H34: 17,206 | I34: 41,106
A36: 평가점수 | B36: 학년 | C36: 400점 이상이거나 2학년 | F36: 상반기합계 | G36: 상반기합계 | H36: 50000~100000의 합
A37: >=400 | C37: =DCOUNTA(A27:D34,C27,A36:B38)&"명" -> 5명 | F37: >=50000 | G37: <=100000 | H37: =DSUM(F27:I34,I27,F36:G37) -> 169,110
B38: =2 -> 2

Sheet 데이터베이스2(결과)
A1: [표1] | F1: [표2]
A2: 성명 | B2: 응시구분 | C2: 1차 | D2: 2차 | F2: 대리점 | G2: 단가 | H2: 출고수량 | I2: 판매금액
A3: 한가람 | B3: P-1 | C3: 79 | D3: 97 | F3: 금성물산 | G3: 1,673 | H3: 40 | I3: =G3*H3 -> 66,920
A4: 김은철 | B4: P-2 | C4: 77 | D4: 89 | F4: 우주상사 | G4: 1,506 | H4: 58 | I4: 87,348
A5: 고사리 | B5: P-1 | C5: 56 | D5: 76 | F5: 신안공업 | G5: 1,126 | H5: 91 | I5: 102,466
A6: 박은별 | B6: P-2 | C6: 88 | D6: 80 | F6: 삼성상사 | G6: 2,953 | H6: 99 | I6: 292,347
A7: 성준서 | B7: P-1 | C7: 88 | D7: 93 | F7: 금성물산 | G7: 1,423 | H7: 54 | I7: 76,842
A8: 이성연 | B8: P-2 | C8: 91 | D8: 67 | F8: 신안공업 | G8: 1,338 | H8: 40 | I8: 53,520
A9: 박한나 | B9: P-1 | C9: 85 | D9: 56 | F9: 금성물산 | G9: 2,310 | H9: 73 | I9: 168,630
A10: 이미리 | B10: P-1 | C10: 76 | D10: 89 | F10: 종로상사 | G10: 1,937 | H10: 90 | I10: 174,330
A12: P-1의 1차 평균 | D12: =DAVERAGE(A2:D10,C2,B2:B3) -> 76.8 | F12: 금성물산 판매금액 합계 | I12: =DSUM(F2:I10,I2,F2:F3) -> 312,392
A14: [표3] | F14: [표4]
A15: 성명 | B15: 부서 | C15: 1/4분기 | D15: 2/4분기 | F15: 소속 | G15: 기사 | H15: 우승횟수 | I15: 준우승횟수
A16: 김남이 | B16: 영업1부 | C16: 557 | D16: 345 | F16: 상공 | G16: 김기호 | H16: 14 | I16: 20
A17: 이지영 | B17: 영업2부 | C17: 476 | D17: 513 | F17: 대한 | G17: 최종명 | H17: 2 | I17: 13
A18: 하나미 | B18: 영업1부 | C18: 231 | D18: 474 | F18: 대한 | G18: 나필승 | H18: 3 | I18: 3
A19: 임진태 | B19: 영업2부 | C19: 175 | D19: 453 | F19: 서울 | G19: 고대로 | H19: 8 | I19: 5
A20: 현민대 | B20: 영업2부 | C20: 834 | D20: 401 | F20: 상공 | G20: 정상승 | H20: 5 | I20: 3
A21: 한민국 | B21: 영업1부 | C21: 597 | D21: 347 | F21: 대한 | G21: 채고다 | H21: 15 | I21: 5
A23: 부서 | B23: 1/4분기 | C23: 2/4분기 | F23: 대한팀 우승횟수 | H23: 소속 | I23: 준우승횟수
A24: 영업2부 | B24: =DMAX($A$15:$D$21,C15,$A$23:$A$24) -> 834 | C24: =DMAX($A$15:$D$21,D15,$A$23:$A$24) -> 513 | F24: =DCOUNT(F15:I21,H15,H23:I24) -> 2 | H24: 대한 | I24: >=5
A26: [표5] | F26: [표6]
A27: 학과 | B27: 학년 | C27: 성명 | D27: 평가점수 | F27: 직원코드 | G27: 1사분기 | H27: 2사분기 | I27: 상반기합계
A28: 디자인 | B28: 1 | C28: 고승수 | D28: 465 | F28: 1-J001 | G28: 92,733 | H28: 46,573 | I28: =G28+H28 -> 139,306
A29: 미디어 | B29: 2 | C29: 구만리 | D29: 604 | F29: 1-J002 | G29: 66,191 | H29: 60,400 | I29: 126,591
A30: 미디어 | B30: 3 | C30: 노상식 | D30: 383 | F30: 1-J003 | G30: 14,809 | H30: 13,827 | I30: 28,636
A31: 디자인 | B31: 2 | C31: 나잘난 | D31: 465 | F31: 1-J004 | G31: 51,382 | H31: 46,573 | I31: 97,955
A32: 미디어 | B32: 1 | C32: 마고수 | D32: 382 | F32: 2-J001 | G32: 19,663 | H32: 17,382 | I32: 37,045
A33: 미디어 | B33: 2 | C33: 박흥철 | D33: 391 | F33: 2-J002 | G33: 22,053 | H33: 49,102 | I33: 71,155
A34: 디자인 | B34: 3 | C34: 사수해 | D34: 572 | F34: 2-J003 | G34: 23,900 | H34: 17,206 | I34: 41,106
A36: 평가점수 | B36: 학년 | C36: 400점 이상이거나 2학년 | F36: 상반기합계 | G36: 상반기합계 | H36: 50000~100000의 합
A37: >=400 | C37: =DCOUNTA(A27:D34,C27,A36:B38)&"명" -> 5명 | F37: >=50000 | G37: <=100000 | H37: =DSUM(F27:I34,I27,F36:G37) -> 169,110
B38: 2

Sheet 데이터베이스3(예제)
B2: 구분 | C2: 월 | D2: YJ001 | E2: YJ002 | F2: YJ003 | G2: YJ004
B3: 판매량 | C3: 1월 | D3: 26 | E3: 43 | F3: 45 | G3: 35
C4: 2월 | D4: 35 | E4: 38 | F4: 36 | G4: 29
C5: 3월 | D5: 45 | E5: 26 | F5: 29 | G5: 48
C6: 4월 | D6: 20 | E6: 17 | F6: 15 | G6: 70
C7: 5월 | D7: 28 | E7: 28 | F7: 48 | G7: 53
B8: 단가 | C8: 1월 | D8: 3500 | E8: 6200 | F8: 5400 | G8: 4800
C9: 2월 | D9: 3500 | E9: 6000 | F9: 5600 | G9: 4700
C10: 3월 | D10: 3600 | E10: 6200 | F10: 5000 | G10: 4700
C11: 4월 | D11: 3300 | E11: 6500 | F11: 5300 | G11: 4500
C12: 5월 | D12: 3500 | E12: 6100 | F12: 5500 | G12: 4600
B15: 총판매액 | C15: 월 | D15: YJ001 | E15: YJ002 | F15: YJ003 | G15: YJ004
C16: 1월

Sheet 데이터베이스3(결과)
B2: 구분 | C2: 월 | D2: YJ001 | E2: YJ002 | F2: YJ003 | G2: YJ004
B3: 판매량 | C3: 1월 | D3: 26 | E3: 43 | F3: 45 | G3: 35
C4: 2월 | D4: 35 | E4: 38 | F4: 36 | G4: 29
C5: 3월 | D5: 45 | E5: 26 | F5: 29 | G5: 48
C6: 4월 | D6: 20 | E6: 17 | F6: 15 | G6: 70
C7: 5월 | D7: 28 | E7: 28 | F7: 48 | G7: 53
B8: 단가 | C8: 1월 | D8: 3500 | E8: 6200 | F8: 5400 | G8: 4800
C9: 2월 | D9: 3500 | E9: 6000 | F9: 5600 | G9: 4700
C10: 3월 | D10: 3600 | E10: 6200 | F10: 5000 | G10: 4700
C11: 4월 | D11: 3300 | E11: 6500 | F11: 5300 | G11: 4500
C12: 5월 | D12: 3500 | E12: 6100 | F12: 5500 | G12: 4600
B15: 총판매액 | C15: 월 | D15: YJ001 | E15: YJ002 | F15: YJ003 | G15: YJ004
C16: 1월 | D16: =DPRODUCT($C$2:$G$12,D2,$C$15:$C$16) -> 91,000 | E16: =DPRODUCT($C$2:$G$12,E2,$C$15:$C$16) -> 266,600 | F16: 243,000 | G16: 168,000

Sheet 문자열1(예제)
B2: 성명 | C2: 주민등록번호 | D2: 정확도 | E2: 생년월일 | F2: 성별 | G2: 나이 | H2: 나이지수 | I2: 나이2 | J2: 끝자리 사은품 | K2: 게이지방식
B3: 심행래 | C3: 650218-1584623 | D3: =IF(LEN(C3)=14,"","틀림") ->  | E3: =DATE(LEFT(C3,2)+IF(MID(C3,8,1)*1<3,1900,2000),MID(C3,3,2),MID(C3,5,2)) -> 1965-02-18 | F3: =IF(OR(MID(C3,8,1)="1",MID(C3,8,1)="3"),"남","여") -> 남 | G3: =YEAR(TODAY())-LEFT(C3,2)-1900 -> 51 | H3: =REPT("★",QUOTIENT(G3,10)) -> ★★★★★ | I3: =YEAR(TODAY())-YEAR(E3) -> 51 | J3: =IF(RIGHT(G3,1)="0","꽝! 다음 기회에",REPT("♥",RIGHT(G3,1))) -> ♥ | K3: =REPT("♥",RIGHT(G3,1))&REPT("♡",9-RIGHT(G3,1)) -> ♥♡♡♡♡♡♡♡♡ | M3: 조건의 3요소
B4: 김봉현 | C4: 601204-1864523 | D4: =IF(LEN(C4)=14,"","틀림") ->  | E4: =DATE(LEFT(C4,2)+IF(MID(C4,8,1)<"3","1900","2000"),MID(C4,3,2),MID(C4,5,2)) -> 1960-12-04 | F4: =IF(OR(MID(C4,8,1)="1",MID(C4,8,1)="3"),"남","여") -> 남 | G4: =YEAR(TODAY())-LEFT(C4,2)-1900 -> 56 | H4: =REPT("★",QUOTIENT(G4,10)) -> ★★★★★ | I4: =YEAR(TODAY())-YEAR(E4) -> 56 | J4: =IF(RIGHT(G4,1)="0","꽝! 다음 기회에",REPT("♥",RIGHT(G4,1))) -> ♥♥♥♥♥♥ | K4: =REPT("♥",RIGHT(G4,1))&REPT("♡",9-RIGHT(G4,1)) -> ♥♥♥♥♥♥♡♡♡ | M4: 대상값, 기호, 제시값
B5: 이찬호 | C5: 620718-1845237 | E5: 1962-07-18 | F5: 남 | G5: =YEAR(TODAY())-LEFT(C5,2)-1900 -> 54 | H5: ★★★★★ | I5: 54 | J5: ♥♥♥♥ | K5: ♥♥♥♥♡♡♡♡♡ | M5: 숫자 | N5: 문자열추출
B6: 박이슈 | C6: 720124-2356427 | E6: 1972-01-24 | F6: 여 | G6: 44 | H6: ★★★★ | I6: 44 | J6: ♥♥♥♥ | K6: ♥♥♥♥♡♡♡♡♡ | M6: 1 | N6: 624879135 | O6: 624879135
B7: 이장군 | C7: 730512-1845615 | E7: 1973-05-12 | F7: 남 | G7: 43 | H7: ★★★★ | I7: 43 | J7: ♥♥♥ | K7: ♥♥♥♡♡♡♡♡♡ | M7: 2
B8: 황건이 | C8: 760314-1875234 | E8: 1976-03-14 | F8: 남 | G8: 40 | H8: ★★★★ | I8: 40 | J8: 꽝! 다음 기회에 | K8: ♡♡♡♡♡♡♡♡♡ | M8: =SUM(M6:M7)=3 -> TRUE | N8: =MID(N6,5,1)=7 -> FALSE
B9: 이율용 | C9: 660217-2485628 | E9: 1966-02-17 | F9: 여 | G9: 50 | H9: ★★★★★ | I9: 50 | J9: 꽝! 다음 기회에 | K9: ♡♡♡♡♡♡♡♡♡ | N9: =MID(J6,5,1)=7 | O9: =MID(J6,5,1)="7"
B10: 장보가 | C10: 710523-2784652 | E10: 1971-05-23 | F10: 여 | G10: 45 | H10: ★★★★ | I10: 45 | J10: ♥♥♥♥♥ | K10: ♥♥♥♥♥♡♡♡♡ | M10: 따라서 | N10: 우리가 구하는 모든 결과는 무조건 문자!
B11: 서정수 | C11: 640819-1864521 | E11: 1964-08-19 | F11: 남 | G11: 52 | H11: ★★★★★ | I11: 52 | J11: ♥♥ | K11: ♥♥♡♡♡♡♡♡♡ | M11: LEFT
B12: 왕순원 | C12: 610126-2845967 | E12: 1961-01-26 | F12: 여 | G12: 55 | H12: ★★★★★ | I12: 55 | J12: ♥♥♥♥♥ | K12: ♥♥♥♥♥♡♡♡♡ | M12: MID
B13: 박목일 | C13: 120630-3875241 | E13: 2012-06-30 | F13: 남 | G13: =YEAR(TODAY())-LEFT(C13,2)-IF(MID(C13,8,1)*1<3,1900,2000) -> 4 | I13: 4 | J13: ♥♥♥♥ | K13: ♥♥♥♥♡♡♡♡♡ | M13: RIGHT
C17: 봉준쌤은 천재입니다. | E17: =LEFT(C17,3) | J17: DATE(LEFT(C4,2)+IF(MID(C3,8,1)<3,"0","100"),MID(C4,3,2),MID(C4,5,2))
B20: 2016-11-25 | C20: =LEFT(C17,3) -> 봉준쌤 | E20: 15485
B21: =LEN(C17) -> 11 | C21: =LEN(C17)
B22: =LEFT(E20,1)*1 -> 1 | C22: =LEFT(D20,1)*1
B23: =VALUE(LEFT(E20,1)) -> 1 | C23: =VALUE(LEFT(D20,1))
B25: =TEXT(B20,"YYYY년 M월 D일") -> 2016년 11월 25일 | C25: =TEXT(B20,"YYYY년 M월 D일")
B26: =TEXT(E20,"0원") -> 15485원 | C26: =TEXT(D20,"0원")
B27: =TEXT(E20,"#,##0원") -> 15,485원 | C27: =TEXT(D20,"#,##0원") | E27: 000을 쓰면 값이 없을 때에도 0 동원해서 3자리만큼 강제로 써넣게 됨. 따라서 #으로.
B28: =TEXT(E20,"#,###,천원") -> 15천원 | C28: =TEXT(D20,"#,###,천원") | E28: 반올림하여 천단위로
B30: 최 | C30: 봉 | E30: 준
B31: =B30&C30&E30 -> 최봉준 | C31: =B30&C30&D30 | E31: 이어 붙일 때
B32: =CONCATENATE(B30,C30,E30) -> 최봉준 | C32: =CONCATENATE(B27,C27,D27) | E32: &연산자와 같은 역할
B34: 최봉준
B35: =FIND("봉",B34) -> 2 | C35: =FIND("봉",B30) | E35: 글자 단위로 찾음
B36: =FINDB("봉",B34) -> 3 | C36: =FINDB("봉",B30) | E36: 바이트 단위로 찾음. 한글은 2바이트, 숫자는 1바이트임. 봉은 4바이트째지만 시작값을 찾으므로 3임
B38: =REPT("★",5) -> ★★★★★ | C38: =REPT("★",5)

Sheet 문자열1(결과)
B2: 성명 | C2: 주민등록번호 | D2: 생일 | E2: 성별 | F2: 나이
B3: 심행래 | C3: 650218-1584623 | D3: =DATE(LEFT(C3,2), MID(C3,3,2), MID(C3,5,2)) -> 1965-02-18 | E3: =IF(MID(C3,8,1)="1", "남자", "여자") -> 남자 | F3: =YEAR(TODAY())-LEFT(C3,2)-1900 -> 51
B4: 김봉현 | C4: 601204-1864523 | D4: =DATE(LEFT(C4,2), MID(C4,3,2), MID(C4,5,2)) -> 1960-12-04 | E4: =IF(MID(C4,8,1)="1", "남자", "여자") -> 남자 | F4: =YEAR(TODAY())-LEFT(C4,2)-1900 -> 56
B5: 이찬호 | C5: 620718-1845237 | D5: 1962-07-18 | E5: 남자 | F5: 54
B6: 박이슈 | C6: 720124-2356427 | D6: 1972-01-24 | E6: 여자 | F6: 44
B7: 이장군 | C7: 730512-1845615 | D7: 1973-05-12 | E7: 남자 | F7: 43
B8: 황건이 | C8: 760314-1875234 | D8: 1976-03-14 | E8: 남자 | F8: 40
B9: 이율용 | C9: 660217-2485628 | D9: 1966-02-17 | E9: 여자 | F9: 50
B10: 장보가 | C10: 710523-2784652 | D10: 1971-05-23 | E10: 여자 | F10: 45
B11: 서정수 | C11: 640819-1864521 | D11: 1964-08-19 | E11: 남자 | F11: 52
B12: 왕순원 | C12: 610126-2845967 | D12: 1961-01-26 | E12: 여자 | F12: 55
B13: 박목일 | C13: 740630-1875241 | D13: 1974-06-30 | E13: 남자 | F13: 42

Sheet 문자열2(예제)
B2: 예제 | C2: LOWER | D2: UPPER | E2: PROPER | F2: LEN | G2: TRIM
B3: AaAa a
B4: BB bbb
B5: CCC cc
B6: D dDdD
B7: EE eee
B9: 이름 | C9: 주민등록번호 | E9: 생일(문자 형식) | F9: 생일(숫자 형식)
B10: 김정수 | C10: 650218-1584623
B11: 노주현 | C11: 601204-1864523
B12: 이홍렬 | C12: 620718-1845237
B13: 박영삼 | C13: 720124-1956427

Sheet 문자열2(결과)
B2: 예제 | C2: LOWER | D2: UPPER | E2: PROPER | F2: LEN | G2: TRIM
B3: AaAa a | C3: =LOWER(B3) -> aaaa a | D3: =UPPER(B3) -> AAAA A | E3: =PROPER(B3) -> Aaaa A | F3: =LEN(B3) -> 9 | G3: =TRIM(B3) -> AaAa a
B4: BB bbb | C4: =LOWER(B4) -> bb bbb | D4: =UPPER(B4) -> BB BBB | E4: =PROPER(B4) -> Bb Bbb | F4: =LEN(B4) -> 8 | G4: =TRIM(B4) -> BB bbb
B5: CCC cc | C5: ccc cc | D5: CCC CC | E5: Ccc Cc | F5: 7 | G5: CCC cc
B6: D dDdD | C6: d dddd | D6: D DDDD | E6: D Dddd | F6: 8 | G6: D dDdD
B7: EE eee | C7: ee eee | D7: EE EEE | E7: Ee Eee | F7: 7 | G7: EE eee
B9: 이름 | C9: 주민등록번호 | E9: 생일(문자 형식) | F9: 생일(숫자 형식)
B10: 김정수 | C10: 650218-1584623 | E10: =TEXT(LEFT(C10,6),"##-##-##") -> 65-02-18 | F10: =VALUE(TEXT(LEFT(C10,6),"##-##-##")) -> 1965-02-18
B11: 노주현 | C11: 601204-1864523 | E11: =TEXT(LEFT(C11,6),"##-##-##") -> 60-12-04 | F11: =VALUE(TEXT(LEFT(C11,6),"##-##-##")) -> 1960-12-04
B12: 이홍렬 | C12: 620718-1845237 | E12: 62-07-18 | F12: 1962-07-18
B13: 박영삼 | C13: 720124-1956427 | E13: 72-01-24 | F13: 1972-01-24

Sheet 문자열3(예제)
C1: 대소문자 구분O | D1: 대소문자 구분X
A2: 찾을 문자열 | B2: 대상 | C2: 문자의 위치(FIND) | D2: 문자의 위치(SEARCH)
A3: EXCEL | B3: Microsoft Excel 2007 | C3: =FIND("E",B3) -> 11
A4: POINT | B4: MICROSOFT POWERPOINT 2007
A5: Soft | B5: microsoft access 2007
A6: 서초동 | B6: 서울 서초구 서초동 1625-7
A7: 55 | B7: 전화번호 : 02-555-3029
B9: 똑같은 글자가 여러 개일 경우 맨 첫번째 것의 위치를 찾는다
A11: 이름 | B11: E-MAIL | C11: ID | D11: FIND함수
A12: 보라돌이 | B12: bora123@naver.com | C12: =LEFT(B12,FIND("@",B12)-1) -> bora123 | D12: =FIND("@",B12)-1 -> 7
A13: 뚜비 | B13: ddoo345@nate.com | C13: =LEFT(B13,FIND("@",B13)-1) -> ddoo345 | D13: =FIND("@",B13)-1 -> 7
A14: 나나 | B14: nana1@gmail.com | C14: nana1 | D14: 5
A15: 뽀 | B15: bbo12345@hanmail.net | C15: bbo12345 | D15: 8
B18: 하이퍼링크 제거하기

Sheet 문자열3(결과)
A2: 찾을 문자열 | B2: 대상 | C2: 문자의 위치(FIND) | D2: 문자의 위치(SEARCH)
A3: EXCEL | B3: Microsoft Excel 2007 | C3: =IFERROR(FIND(A3,B3),"에러") -> 에러 | D3: =IFERROR(SEARCH(A3,B3),"에러") -> 11
A4: POINT | B4: MICROSOFT POWERPOINT 2007 | C4: =IFERROR(FIND(A4,B4),"에러") -> 16 | D4: =IFERROR(SEARCH(A4,B4),"에러") -> 16
A5: Soft | B5: microsoft access 2007 | C5: 에러 | D5: 6
A6: 서초동 | B6: 서울 서초구 서초동 1625-7 | C6: 8 | D6: 8
A7: 55 | B7: 전화번호 : 02-555-3029 | C7: 11 | D7: 11

Sheet 수학1(예제)
A2: 1) | B2: 숫자 | C2: 짝수/홀수 | D2: MOD(값,나눌수) | E2: 나머지를 구함
B3: 225 | C3: =IF(MOD(B3,2)=1,"홀","짝") -> 홀 | D3: =MOD(B3,2) | F3: 1234.5678
B4: 300 | C4: =IF(MOD(B4,2)=1,"홀","짝") -> 짝 | E4: =ROUND(F2,2) | F4: =ROUNDUP(F2,2) | G4: =ROUNDDOWN(F2,2)
B5: 387 | C5: 홀 | E5: =ROUND(F3,2) -> 1234.57 | F5: =ROUNDUP(F3,-3) -> 2000 | G5: =ROUNDDOWN(F3,2) -> 1234.56
B6: 570 | C6: 짝 | E6: 쓰는 법 | F6: (값,자릿수)
D7: 내림(버림) | E7: 반올림 | F7: 올림 | G7: 내림(버림)
A8: 2) | B8: 숫자 | C8: 자릿수 | D8: TRUNC | E8: ROUND | F8: ROUNDUP | G8: ROUNDDOWN
B9: 5678.567 | C9: 2
B10: 5678.567 | C10: 1
B11: 5678.567 | C11: 0
B12: 5678.567 | C12: -2
B13: 5678.567 | C13: -1
A15: 3) | B15: 숫자 | C15: INT | D15: ABS
B16: 456.789 | C16: =INT(B16) -> 456 | D16: =ABS(B16) -> 456.789
B17: -456.789 | C17: =INT(B17) -> -457 | D17: =ABS(B17) -> 456.789
B18: 150.00
B19: 250.00
B22: 저 값을 백의 자리에서 반올림하여 천의 자리까지 표시하시오.
B23: 4567 -> 5000
B25: IF식을 세울 때 [조건식의 대상값->조건식->IF함수 완성] 순서로 진행하도록 연습하자

Sheet 수학1(결과)
A2: 1) | B2: 숫자 | C2: 짝수/홀수
B3: 225 | C3: =IF(MOD(B3,2)=0,"짝수","홀수") -> 홀수
B4: 300 | C4: =IF(MOD(B4,2)=0,"짝수","홀수") -> 짝수
B5: 387 | C5: 홀수
B6: 570 | C6: 짝수
A8: 2) | B8: 숫자 | C8: 자릿수 | D8: TRUNC | E8: ROUND | F8: ROUNDUP | G8: ROUNDDOWN
B9: 5678.567 | C9: 2 | D9: =TRUNC(B9,C9) -> 5678.56 | E9: =ROUND(B9,C9) -> 5678.57 | F9: =ROUNDUP(B9,C9) -> 5678.57 | G9: =ROUNDDOWN(B9,C9) -> 5678.56
B10: 5678.567 | C10: 1 | D10: =TRUNC(B10,C10) -> 5678.5 | E10: =ROUND(B10,C10) -> 5678.6 | F10: =ROUNDUP(B10,C10) -> 5678.6 | G10: =ROUNDDOWN(B10,C10) -> 5678.5
B11: 5678.567 | C11: 0 | D11: 5678 | E11: 5679 | F11: 5679 | G11: 5678
B12: 5678.567 | C12: -2 | D12: 5600 | E12: 5700 | F12: 5700 | G12: 5600
B13: 5678.567 | C13: -1 | D13: 5670 | E13: 5680 | F13: 5680 | G13: 5670
A15: 3) | B15: 숫자 | C15: INT | D15: ABS
B16: 456.789 | C16: =INT(B16) -> 456 | D16: =ABS(B16) -> 456.789
B17: -456.789 | C17: =INT(B17) -> -457 | D17: =ABS(B17) -> 456.789
B18: 150.00 | C18: 150 | D18: 150
B19: 250.00 | C19: 250 | D19: 250

Sheet 수학2(예제)
A2: • SQRT | B2: 25 | F2: • PI
A4: • FACT | B4: 5 | F4: • RAND
A6: • POWER | B6: 4
B8: 이름 | C8: 부서 | D8: 1월 | E8: 2월 | F8: 3월 | G8: 합계
B9: 김상원 | C9: 영업1부 | D9: 557 | E9: 345 | F9: 721 | G9: =SUM(D9:F9) -> 1623
B10: 이갑봉 | C10: 영업2부 | D10: 476 | E10: 513 | F10: 174 | G10: 1163
B11: 강정희 | C11: 영업1부 | D11: 231 | E11: 474 | F11: 358 | G11: 1063
B12: 김동호 | C12: 영업1부 | D12: 175 | E12: 453 | F12: 443 | G12: 1071
B13: 이남주 | C13: 영업2부 | D13: 834 | E13: 401 | F13: 743 | G13: 1978
B14: 왕영애 | C14: 영업1부 | D14: 597 | E14: 347 | F14: 346 | G14: 1290
B15: 박효남 | C15: 영업2부 | D15: 634 | E15: 530 | F15: 651 | G15: 1815
D16: =SUMIF(C9:C15,"=영업2부",D9:D15) -> 1944
B18: 부서 | C18: 인원 | D18: 1월합계 | E18: 2월합계 | F18: 3월합계 | H18: 1월~3월이 400 이상인 합계
B19: 영업1부 | C19: =COUNTIF(C9:C15,B19) -> 4 | D19: =SUMIF($C$9:$C$15,$B$19,D9:D15) -> 1560 | E19: =SUMIF($C$9:$C$15,$B$19,E9:E15) -> 1619 | F19: 1868 | H19: =SUMIFS(G9:G15,D9:D15,D12,E9:E15,E12,F9:F15,F12) -> 1071 | L19: 2886
B24: 김씨 중 영업 1부의 1월 합계 | E24: =SUMIFS(D9:D15,B9:B15,"김*",C9:C15,"영업1부") -> 732

Sheet 수학2(결과)
A2: • SQRT | B2: 25 | D2: =SQRT(B2) -> 5 | F2: • PI | H2: =PI( ) -> 3.141592654
A4: • FACT | B4: 5 | D4: =FACT(B4) -> 120 | F4: • RAND | H4: =RAND( ) -> 0.6805660441
A6: • POWER | B6: 4 | D6: =POWER(B6,3) -> 64
B8: 이름 | C8: 부서 | D8: 1월 | E8: 2월 | F8: 3월 | G8: 합계
B9: 김상원 | C9: 영업1부 | D9: 557 | E9: 345 | F9: 721 | G9: =SUM(D9:F9) -> 1623
B10: 이갑봉 | C10: 영업2부 | D10: 476 | E10: 513 | F10: 174 | G10: 1163
B11: 강정희 | C11: 영업1부 | D11: 231 | E11: 474 | F11: 358 | G11: 1063
B12: 김동호 | C12: 영업1부 | D12: 175 | E12: 453 | F12: 443 | G12: 1071
B13: 이남주 | C13: 영업2부 | D13: 834 | E13: 401 | F13: 743 | G13: 1978
B14: 왕영애 | C14: 영업1부 | D14: 597 | E14: 347 | F14: 346 | G14: 1290
B15: 박효남 | C15: 영업2부 | D15: 634 | E15: 530 | F15: 651 | G15: 1815
B18: 부서 | C18: 인원 | D18: 1월합계 | E18: 2월합계 | F18: 3월합계 | H18: 1월~3월이 400 이상인 합계
B19: 영업1부 | C19: =COUNTIF(C9:C15, B19) -> 4 | D19: =SUMIF($C$9:$C$15, $B$19,D9:D15) -> 1560 | E19: =SUMIF($C$9:$C$15, $B$19,E9:E15) -> 1619 | F19: =SUMIF($C$9:$C$15, $B$19,F9:F15) -> 1868 | H19: =SUMIFS(G9:G15,D9:D15,">=400",E9:E15,">=400",F9:F15,">=400") -> 3793

Sheet 재무1(예제)
B1: • FV 함수 | C1: 미래가치 (적금) | E1: • PV 함수 | F1: 현재가치 (연금)
B3: 연이율 | C3: 6% | E3: 연이율 | F3: 8%
B4: 기간 | C4: 1년 | E4: 수령 기간 | F4: 30년
B5: 월불입액 | C5: 300,000 | E5: 매월 수령액 | F5: 100,000
B7: 만기금액 | C7: =FV(C3/12,C4*12,-C5) -> ₩3,700,669 | E7: 연금의 현재가치 | F7: =PV(F3/12,F4*12,-F5) -> ₩13,628,349
B9: • PMT 함수 | E9: • PMT 함수
B11: 연이율 | C11: 7.5% | E11: 연이율 | F11: 4.5%
B12: 기간 | C12: 3년 | E12: 기간 | F12: 5년
B13: 대출금액 | C13: 50,000,000 | E13: 저축총액 | F13: 50,000,000
B15: 월상환액 | C15: =PMT(C11/12,C12*12,-C13) -> ₩1,555,311 | E15: 월불입액

Sheet 재무1(결과)
B1: • FV 함수 | E1: • PV 함수
B3: 연이율 | C3: 6% | E3: 연이율 | F3: 8%
B4: 기간 | C4: 1년 | E4: 수령 기간 | F4: 30년
B5: 월불입액 | C5: 300,000 | E5: 매월 수령액 | F5: 100,000
B7: 만기금액 | C7: =FV(C3/12,C4*12,-C5) -> ₩3,700,669 | E7: 연금의 현재가치 | F7: =PV(F3/12,F4*12,-F5) -> ₩13,628,349
B9: • PMT 함수 | E9: • PMT 함수
B11: 연이율 | C11: 7.5% | E11: 연이율 | F11: 4.5%
B12: 기간 | C12: 3년 | E12: 기간 | F12: 5년
B13: 대출금액 | C13: 50,000,000 | E13: 저축총액 | F13: 50,000,000
B15: 월상환액 | C15: =PMT(C11/12,C12*12,-C13) -> ₩1,555,311 | E15: 월불입액 | F15: =PMT(F11/12,F12*12,0,-F13) -> ₩744,651

Sheet 재무2(예제)
B1: •AMORDEGRC 함수 | E1: • AMORLINC 함수
B3: 자산취득가 | C3: 33,540,000 | E3: 자산취득가 | F3: 33,540,000
B4: 자산취득일 | C4: 2017-08-19 | E4: 자산취득일 | F4: 2017-08-19
B5: 첫째 회계 기간의 마지막 날짜 | C5: 2017-12-31 | E5: 첫째 회계 기간의 마지막 날짜 | F5: 2017-12-31
B6: 잔존 가치 | C6: 28,000,000 | E6: 잔존 가치 | F6: 28,000,000
B7: 기간 | C7: 1 | E7: 기간 | F7: 1
B8: 감가상각률 | C8: 15% | E8: 감가상각률 | F8: 15%
B9: 날짜 체계 | C9: 1 | E9: 날짜 체계 | F9: 1
B10: 감가상각액(AMORDEGRC) | E10: 감가상각액(AMORLINC)
B12: • DB 함수 | E12: • DDB 함수
B14: 자산취득가 | C14: 33,540,000 | E14: 비용 | F14: 33,540,000
B15: 잔존가치 | C15: 15,000,000 | E15: 잔존가치 | F15: 15,000,000
B16: 년수(수명) | C16: 10 | E16: 년수(수명) | F16: 10
B17: 기간 | C17: 3 | E17: 기간 | F17: 3
B18: 첫해의 사용 개월수 | C18: 8 | E18: 잔액이 감소하는 비율
B19: 감가상각액(DB) | E19: 감가상각액(DDB)
B21: • SLN 함수 | E21: • SYD 함수
B23: 비용 | C23: 33,540,000 | E23: 비용 | F23: 33,540,000
B24: 잔존가치 | C24: 15,000,000 | E24: 잔존가치 | F24: 15,000,000
B25: 년수 | C25: 10 | E25: 년수 | F25: 10
B26: 감가상각액(SLN) | E26: 년차 | F26: 3
E27: 감가상각액(SYD)

Sheet 재무2(결과)
B1: •AMORDEGRC 함수 | E1: • AMORLINC 함수
B3: 자산취득가 | C3: 33,540,000 | E3: 자산취득가 | F3: 33,540,000
B4: 자산취득일 | C4: 2017-08-19 | E4: 자산취득일 | F4: 2017-08-19
B5: 첫째 회계 기간의 마지막 날짜 | C5: 2017-12-31 | E5: 첫째 회계 기간의 마지막 날짜 | F5: 2017-12-31
B6: 잔존 가치 | C6: 28,000,000 | E6: 잔존 가치 | F6: 28,000,000
B7: 기간 | C7: 1 | E7: 기간 | F7: 1
B8: 감가상각률 | C8: 15% | E8: 감가상각률 | F8: 15%
B9: 날짜 체계 | C9: 1 | E9: 날짜 체계 | F9: 1
B10: 감가상각액(AMORDEGRC) | C10: =AMORDEGRC(C3,C4,C5,C6,C7,C8,C9) -> ₩10,845,940 | E10: 감가상각액(AMORLINC) | F10: =AMORLINC(F3,F4,F5,F6,F7,F8,F9) -> ₩3,693,003
B12: • DB 함수 | E12: • DDB 함수
B14: 자산취득가 | C14: 33,540,000 | E14: 비용 | F14: 33,540,000
B15: 잔존가치 | C15: 15,000,000 | E15: 잔존가치 | F15: 15,000,000
B16: 년수(수명) | C16: 10 | E16: 년수(수명) | F16: 10
B17: 기간 | C17: 3 | E17: 기간 | F17: 3
B18: 첫해의 사용 개월수 | C18: 8 | E18: 잔액이 감소하는 비율
B19: 감가상각액(DB) | C19: =DB(C14,C15,C16,C17,C18) -> ₩2,261,357 | E19: 감가상각액(DDB) | F19: =DDB(F14,F15,F16,F17) -> ₩4,293,120
B21: • SLN 함수 | E21: • SYD 함수
B23: 비용 | C23: 33,540,000 | E23: 비용 | F23: 33,540,000
B24: 잔존가치 | C24: 15,000,000 | E24: 잔존가치 | F24: 15,000,000
B25: 년수 | C25: 10 | E25: 년수 | F25: 10
B26: 감가상각액(SLN) | C26: =SLN(C23,C24,C25) -> ₩1,854,000 | E26: 년차 | F26: 3
E27: 감가상각액(SYD) | F27: =SYD(F23,F24,F25,F26) -> ₩2,696,727

Sheet 통계1(예제)
A1: [표1] | B1: 도서별 대출실적 합계 | G1: [표2] | H1: 신입사원 면접결과
A2: 구분 | B2: 4월 | C2: 5월 | D2: 6월 | E2: 평균 | G2: 성명 | H2: 면접점수 | I2: 순위 | J2: RANK(기준값,참조영역)
A3: 총서 | B3: 108 | C3: 150 | D3: 97 | E3: =ROUND(AVERAGE(B3:D3),1) -> 118.3 | G3: 하길주 | H3: 77 | I3: =RANK(H3,$H$3:$H$10) -> 3
A4: 사회과학 | B4: 152 | C4: 52 | D4: 110 | E4: =ROUND(AVERAGE(B4:D4),1) -> 104.7 | G4: 이선호 | H4: 85 | I4: =RANK(H4,$H$3:$H$10) -> 1
A5: 인문과학 | B5: 52 | C5: 101 | D5: 89 | E5: 80.7 | G5: 강성수 | H5: 63 | I5: 5
A6: 공학 | B6: 100 | C6: 98 | D6: 101 | E6: 99.7 | G6: 김보견 | H6: 45 | I6: 8
A7: 디자인 | B7: 75 | C7: 200 | D7: 36 | E7: 103.7 | G7: 천수만 | H7: 64 | I7: 4
G8: 이소영 | H8: 50 | I8: 6
A9: [표3] | B9: 직급별 연봉액 | G9: 맹순자 | H9: 46 | I9: 7
A10: 성명 | B10: 직급 | C10: 연봉액 | G10: 전기수 | H10: 78 | I10: 2
A11: 강희정 | B11: 부장 | C11: 36,483,516
A12: 김민수 | B12: 사원 | C12: 12,991,336 | E12: [표4] | F12: 영진고등학교 2학년 모의고사 성적 현황
A13: 나인성 | B13: 사원 | C13: 14,230,019 | E13: 성명 | F13: 1차 | G13: 2차 | H13: 3차 | I13: 점수변동폭
A14: 민성진 | B14: 대리 | C14: 23,122,065 | E14: 배수진 | F14: 320 | G14: 341 | H14: 360 | I14: =MAX(F14:H14)-MIN(F14:H14) -> 40 | J14: =최고값-최소값
A15: 박정아 | B15: 과장 | C15: 25,390,984 | E15: 강경화 | F15: 296 | G15: 250 | H15: 270 | I15: =MAX(F15:H15)-MIN(F15:H15) -> 46
A16: 서진이 | B16: 사원 | C16: 20,859,311 | E16: 김순응 | F16: 255 | G16: 310 | H16: 322 | I16: 67
A17: 강창우 | B17: 이사 | C17: 78,945,600 | E17: 고해진 | F17: 361 | G17: 308 | H17: 375 | I17: 67
E18: 박병철 | F18: 291 | G18: 342 | H18: 332 | I18: 51
A19: 3번째 큰값 | C19: =LARGE(C11:C17,LEFT(A19,1)) -> 25,390,984 | E19: 이선화 | F19: 308 | G19: 367 | H19: 367 | I19: 59
A20: 2번째 작은 값 | C20: =SMALL(C11:C17,2) -> 14,230,019 | E20: 김태민 | F20: 321 | G20: 268 | H20: 297 | I20: 53
A22: [표5] | B22: 컴퓨터 연수 결과
A23: 성명 | B23: 엑셀 | C23: 워드 | D23: 인터넷활용
A24: 이지용 | B24: 87 | C24: 56 | D24: 78
A25: 남진철 | B25: 98 | C25: 87 | D25: 78
A26: 어인애 | B26: 45 | C26: 67 | D26: 89
A27: 천우덕 | B27: 34 | C27: 99 | D27: 86
A28: 민지환 | B28: 90 | C28: 87 | D28: 88
A29: 박성자 | B29: 93 | C29: 54 | D29: 90
A30: 표준편차 | B30: =STDEV(B24:B29) -> 27.57 | C30: =STDEV(C24:C29) -> 18.60 | D30: 5.46
A31: 분산 | B31: =VAR(B24:B29) -> 760.30 | C31: =VAR(C24:C29) -> 346.00 | D31: 29.77

Sheet 통계1(결과)
A1: [표1] | B1: 도서별 대출실적 합계 | G1: [표2] | H1: 신입사원 면접결과
A2: 구분 | B2: 4월 | C2: 5월 | D2: 6월 | E2: 평균 | G2: 성명 | H2: 면접점수 | I2: 순위
A3: 총서 | B3: 108 | C3: 150 | D3: 97 | E3: =ROUND(AVERAGE(B3:D3),1) -> 118.3 | G3: 하길주 | H3: 77 | I3: =RANK(H3,$H$3:$H$10)&"등" -> 3등
A4: 사회과학 | B4: 152 | C4: 52 | D4: 110 | E4: =ROUND(AVERAGE(B4:D4),1) -> 104.7 | G4: 이선호 | H4: 85 | I4: =RANK(H4,$H$3:$H$10)&"등" -> 1등
A5: 인문과학 | B5: 52 | C5: 101 | D5: 89 | E5: =ROUND(AVERAGE(B5:D5),1) -> 80.7 | G5: 강성수 | H5: 63 | I5: 5등
A6: 공학 | B6: 100 | C6: 98 | D6: 101 | E6: =ROUND(AVERAGE(B6:D6),1) -> 99.7 | G6: 김보견 | H6: 45 | I6: 8등
A7: 디자인 | B7: 75 | C7: 200 | D7: 36 | E7: =ROUND(AVERAGE(B7:D7),1) -> 103.7 | G7: 천수만 | H7: 64 | I7: 4등
G8: 이소영 | H8: 50 | I8: 6등
A9: [표3] | B9: 직급별 연봉액 | G9: 맹순자 | H9: 46 | I9: 7등
A10: 성명 | B10: 직급 | C10: 연봉액 | G10: 전기수 | H10: 78 | I10: 2등
A11: 강희정 | B11: 부장 | C11: 36,483,516
A12: 김민수 | B12: 사원 | C12: 12,991,336 | E12: [표4] | F12: 영진고등학교 2학년 모의고사 성적 현황
A13: 나인성 | B13: 사원 | C13: 14,230,019 | E13: 성명 | F13: 1차 | G13: 2차 | H13: 3차 | I13: 점수변동폭
A14: 민성진 | B14: 대리 | C14: 23,122,065 | E14: 배수진 | F14: 320 | G14: 341 | H14: 360 | I14: =MAX(F14:H14)-MIN(F14:H14) -> 40
A15: 박정아 | B15: 과장 | C15: 25,390,984 | E15: 강경화 | F15: 296 | G15: 250 | H15: 270 | I15: =MAX(F15:H15)-MIN(F15:H15) -> 46
A16: 서진이 | B16: 사원 | C16: 20,859,311 | E16: 김순응 | F16: 255 | G16: 310 | H16: 322 | I16: 67
A17: 강창우 | B17: 이사 | C17: 78,945,600 | E17: 고해진 | F17: 361 | G17: 308 | H17: 375 | I17: 67
E18: 박병철 | F18: 291 | G18: 342 | H18: 332 | I18: 51
A19: 2번째 큰값 | C19: =LARGE(C11:C17,2) -> 36,483,516 | E19: 이선화 | F19: 308 | G19: 367 | H19: 367 | I19: 59
A20: 2번째 작은 값 | C20: =SMALL(C11:C17,2) -> 14,230,019 | E20: 김태민 | F20: 321 | G20: 268 | H20: 297 | I20: 53
A22: [표5] | B22: 컴퓨터 연수 결과
A23: 성명 | B23: 엑셀 | C23: 워드 | D23: 인터넷활용
A24: 이지용 | B24: 87 | C24: 56 | D24: 78
A25: 남진철 | B25: 98 | C25: 87 | D25: 78
A26: 어인애 | B26: 45 | C26: 67 | D26: 89
A27: 천우덕 | B27: 34 | C27: 99 | D27: 86
A28: 민지환 | B28: 90 | C28: 87 | D28: 88
A29: 박성자 | B29: 93 | C29: 54 | D29: 90
A30: 표준편차 | B30: =STDEV(B24:B29) -> 27.57 | C30: =STDEV(C24:C29) -> 18.60 | D30: =STDEV(D24:D29) -> 5.46
A31: 분산 | B31: =VAR(B24:B29) -> 760.30 | C31: =VAR(C24:C29) -> 346.00 | D31: =VAR(D24:D29) -> 29.77

Sheet 통계2(예제)
A1: 영어 시험 점수 | G1: 직원 근무 평가
F2: 성명 | G2: 입사일 | H2: 근무점수
A3: 이름 | B3: 영어점수 | D3: 응시 인원수 | F3: 박정호 | G3: 1994-06-06 | H3: 73
A4: 강인월 | B4: 90 | F4: 신정희 | G4: 1997-04-01 | H4: 68 | I4: 70점대
A5: 차영국 | B5: 100 | F5: 김용태 | G5: 1999-05-06 | H5: 98
A6: 이미자 | B6: 85 | F6: 김진영 | G6: 1995-11-01 | H6: 65
A7: 류장결 | B7: 70 | F7: 유현숙 | G7: 1998-01-01 | H7: 69
A8: 송태영 | B8: 95 | F8: 최정렬 | G8: 1998-06-10 | H8: 80
A9: 박상영 | B9: 65 | F9: 강창희 | G9: 1997-09-11 | H9: 86
A10: 최현구 | B10: 80 | F10: 천영주 | G10: 1996-06-10 | H10: 70
F11: 박인수 | G11: 1998-05-06 | H11: 68
C13: 대금 납부 현황 | G13: 교재 대금 납부 현황
A14: 성명 | B14: 공통필수 | C14: 전공필수 | D14: 전공선택 | F14: 번호 | G14: 성명 | H14: 공통필수 | I14: 전공필수 | J14: 전공선택 | K14: 어학
A15: 어동철 | B15: O | D15: O | F15: 101 | G15: 이동한 | H15: 납부 | J15: 납부
A16: 인당수 | C16: O | F16: 102 | G16: 어형부 | I16: 납부
A17: 기형도 | B17: O | D17: O | F17: 103 | G17: 강철민 | H17: 납부 | J17: 납부
A18: 안지만 | B18: O | C18: O | F18: 104 | G18: 오지훈 | I18: 납부 | K18: 납부
A19: 신호연 | D19: O | F19: 105 | G19: 사용철 | J19: 납부
A20: 윤동훈 | B20: O | C20: O | D20: O | F20: 106 | G20: 우동철 | I20: 납부 | J20: 납부
A21: 임미영 | C21: O | D21: O | F21: 107 | G21: 유민국 | H21: 납부 | I21: 납부 | K21: 납부
A22: 구대성 | B22: O | D22: O | F22: 108 | G22: 안동수 | J22: 납부
A23: 미납자수 | G23: 미납자수

Sheet 통계2(결과)
A1: 영어 시험 점수 | G1: 직원 근무 평가
F2: 성명 | G2: 입사일 | H2: 근무점수
A3: 이름 | B3: 영어점수 | D3: 응시 인원수 | F3: 박정호 | G3: 1994-06-06 | H3: 73
A4: 강인월 | B4: 90 | D4: =COUNT(B4:B10) -> 7 | F4: 신정희 | G4: 1997-04-01 | H4: 68 | I4: 70점대
A5: 차영국 | B5: 100 | F5: 김용태 | G5: 1999-05-06 | H5: 98 | I5: =COUNTIF(H3:H11,">=70")-COUNTIF(H3:H11,">=80") -> 2
A6: 이미자 | B6: 85 | F6: 김진영 | G6: 1995-11-01 | H6: 65
A7: 류장결 | B7: 70 | F7: 유현숙 | G7: 1998-01-01 | H7: 69
A8: 송태영 | B8: 95 | F8: 최정렬 | G8: 1998-06-10 | H8: 80
A9: 박상영 | B9: 65 | F9: 강창희 | G9: 1997-09-11 | H9: 86
A10: 최현구 | B10: 80 | F10: 천영주 | G10: 1996-06-10 | H10: 70
F11: 박인수 | G11: 1998-05-06 | H11: 68
C13: 대금 납부 현황 | G13: 교재 대금 납부 현황
A14: 성명 | B14: 공통필수 | C14: 전공필수 | D14: 전공선택 | F14: 번호 | G14: 성명 | H14: 공통필수 | I14: 전공필수 | J14: 전공선택 | K14: 어학
A15: 어동철 | B15: O | D15: O | F15: 101 | G15: 이동한 | H15: 납부 | J15: 납부
A16: 인당수 | C16: O | F16: 102 | G16: 어형부 | I16: 납부
A17: 기형도 | B17: O | D17: O | F17: 103 | G17: 강철민 | H17: 납부 | J17: 납부
A18: 안지만 | B18: O | C18: O | F18: 104 | G18: 오지훈 | I18: 납부 | K18: 납부
A19: 신호연 | D19: O | F19: 105 | G19: 사용철 | J19: 납부
A20: 윤동훈 | B20: O | C20: O | D20: O | F20: 106 | G20: 우동철 | I20: 납부 | J20: 납부
A21: 임미영 | C21: O | D21: O | F21: 107 | G21: 유민국 | H21: 납부 | I21: 납부 | K21: 납부
A22: 구대성 | B22: O | D22: O | F22: 108 | G22: 안동수 | J22: 납부
A23: 미납자수 | B23: =COUNTA(B15:B22) -> 5 | C23: =COUNTA(C15:C22) -> 4 | D23: =COUNTA(D15:D22) -> 6 | G23: 미납자수 | H23: =COUNTBLANK(H15:H22) -> 5 | I23: =COUNTBLANK(I15:I22) -> 4 | J23: =COUNTBLANK(J15:J22) -> 3 | K23: =COUNTBLANK(K15:K22) -> 6

Sheet 통계3(예제)
B1: [표1] 차량운송현황
B3: 일자 | C3: 차량번호 | D3: 거래처 | E3: 도착지 | F3: 수량 | G3: 협력사 | H3: 지급액 | J3: ① 도착지가 '영천'인 지급액의 평균은? | K3: =AVERAGEIF(E4:E20,"영천",H4:H20) -> 350,143
B4: 2017-01-11 | C4: 1416 | D4: 구상공업 | E4: 영천 | F4: 8 | G4: 자차 | H4: 424,000
B5: 2017-01-11 | C5: 1705 | D5: 구상공업 | E5: 영천 | F5: 18 | G5: 전국 | H5: 337,000
B6: 2017-01-13 | C6: 1935 | D6: 구상공업 | E6: 의왕 | F6: 7 | G6: 자차 | H6: 299,000 | J6: ② 도착지가 '고령'이면서 협력사가 '자차'인 지급액의 평균은? | K6: =AVERAGEIFS(H4:H20,E4:E20,"고령",G4:G20,"자차") -> 174,000
B7: 2017-01-23 | C7: 3229 | D7: 구상공업 | E7: 영천 | F7: 12 | G7: 전국 | H7: 212,000
B8: 2017-01-30 | C8: 5326 | D8: 구상공업 | E8: 서울 | F8: 13 | G8: 전국 | H8: 304,000
B9: 2017-01-06 | C9: 1126 | D9: 초석산업 | E9: 군위 | F9: ERROR | G9: 자차 | H9: 194,000 | J9: ③ 거래처가 '초석산업', 도착지 '영천', 수량 >=10 조건을 모두 만족한 건수는? | K9: =COUNTIFS(D4:D20,"초석산업",E4:E20,"영천",F4:F20,">=10") -> 3
B10: 2017-01-08 | C10: 1355 | D10: 초석산업 | E10: 고령 | F10: 12 | G10: 자차 | H10: 190,000
B11: 2017-01-08 | C11: 1355 | D11: 초석산업 | E11: 고령 | F11: 10 | G11: 자차 | H11: 158,000
B12: 2017-01-10 | C12: 1343 | D12: 초석산업 | E12: 고령 | F12: 8 | G12: 한성 | H12: 126,000 | J12: ④ 수량에서 최대값은?
B13: 2017-01-10 | C13: 1343 | D13: 초석산업 | E13: 고령 | F13: 18 | G13: 한성 | H13: 284,000
B14: 2017-01-11 | C14: 1667 | D14: 초석산업 | E14: 구미 | F14: 3 | G14: 황소 | H14: 424,000
B15: 2017-01-16 | C15: 1919 | D15: 초석산업 | E15: 구미 | F15: 20 | G15: 황소 | H15: 357,000
B16: 2017-01-19 | C16: 2731 | D16: 초석산업 | E16: 영천 | F16: 24 | G16: 한성 | H16: 424,000
B17: 2017-01-23 | C17: 3629 | D17: 초석산업 | E17: 군위 | F17: ERROR | G17: 자차 | H17: 212,000
B18: 2017-01-27 | C18: 4306 | D18: 초석산업 | E18: 영천 | F18: 24 | G18: 한성 | H18: 424,000
B19: 2017-01-28 | C19: 5301 | D19: 초석산업 | E19: 영천 | F19: 16 | G19: 황소 | H19: 306,000
B20: 2017-01-09 | C20: 1336 | D20: 홍신기업 | E20: 영천 | F20: 12 | G20: 전국 | H20: 324,000

Sheet 통계3(결과)
B1: [표1] 차량운송현황
B3: 일자 | C3: 차량번호 | D3: 거래처 | E3: 도착지 | F3: 수량 | G3: 협력사 | H3: 지급액 | J3: ① 도착지가 '영천'인 지급액의 평균은? | K3: =AVERAGEIF(E4:E20,"영천",H4:H20) -> 350,143
B4: 2017-01-11 | C4: 1416 | D4: 구상공업 | E4: 영천 | F4: 8 | G4: 자차 | H4: 424,000
B5: 2017-01-11 | C5: 1705 | D5: 구상공업 | E5: 영천 | F5: 18 | G5: 전국 | H5: 337,000
B6: 2017-01-13 | C6: 1935 | D6: 구상공업 | E6: 의왕 | F6: 7 | G6: 자차 | H6: 299,000 | J6: ② 도착지가 '고령'이면서 협력사가 '자차'인 지급액의 평균은? | K6: =AVERAGEIFS(H4:H20,E4:E20,"고령",G4:G20,"자차") -> 174,000
B7: 2017-01-23 | C7: 3229 | D7: 구상공업 | E7: 영천 | F7: 12 | G7: 전국 | H7: 212,000
B8: 2017-01-30 | C8: 5326 | D8: 구상공업 | E8: 서울 | F8: 13 | G8: 전국 | H8: 304,000
B9: 2017-01-06 | C9: 1126 | D9: 초석산업 | E9: 군위 | F9: ERROR | G9: 자차 | H9: 194,000 | J9: ③ 거래처가 '초석산업', 도착지 '영천', 수량 >=10 조건을 모두 만족한 건수는? | K9: =COUNTIFS(D4:D20,"초석산업",E4:E20,"영천",F4:F20,">=10") -> 3
B10: 2017-01-08 | C10: 1355 | D10: 초석산업 | E10: 고령 | F10: 12 | G10: 자차 | H10: 190,000
B11: 2017-01-08 | C11: 1355 | D11: 초석산업 | E11: 고령 | F11: 10 | G11: 자차 | H11: 158,000
B12: 2017-01-10 | C12: 1343 | D12: 초석산업 | E12: 고령 | F12: 8 | G12: 한성 | H12: 126,000 | J12: ④ 수량에서 최대값은? | K12: =MAXA(F4:F20) -> 24
B13: 2017-01-10 | C13: 1343 | D13: 초석산업 | E13: 고령 | F13: 18 | G13: 한성 | H13: 284,000
B14: 2017-01-11 | C14: 1667 | D14: 초석산업 | E14: 구미 | F14: 3 | G14: 황소 | H14: 424,000
B15: 2017-01-16 | C15: 1919 | D15: 초석산업 | E15: 구미 | F15: 20 | G15: 황소 | H15: 357,000
B16: 2017-01-19 | C16: 2731 | D16: 초석산업 | E16: 영천 | F16: 24 | G16: 한성 | H16: 424,000
B17: 2017-01-23 | C17: 3629 | D17: 초석산업 | E17: 군위 | F17: ERROR | G17: 자차 | H17: 212,000
B18: 2017-01-27 | C18: 4306 | D18: 초석산업 | E18: 영천 | F18: 24 | G18: 한성 | H18: 424,000
B19: 2017-01-28 | C19: 5301 | D19: 초석산업 | E19: 영천 | F19: 16 | G19: 황소 | H19: 306,000
B20: 2017-01-09 | C20: 1336 | D20: 홍신기업 | E20: 영천 | F20: 12 | G20: 전국 | H20: 324,000

Sheet 찾기1(예제)
A1: [표1] | F1: [표2] | K1: [표3]
A2: 고객번호 | B2: 고객명 | C2: 고객등급 | D2: 사은품 | F2: 위치 | G2: 이용일수 | H2: 회원명 | I2: 비고 | K2: 성명 | L2: 수강과목수 | M2: 수강료
A3: B_Sep1 | B3: 권태형 | C3: GOLD | F3: 통영 | G3: 10 | H3: 서현진 | I3: 우수회원 | K3: 김병수 | L3: 3
A4: B_Sep2 | B4: 강주호 | C4: DIAMOND | F4: 설악 | G4: 15 | H4: 하태훈 | I4: 우수회원 | K4: 차인태 | L4: 1
A5: B_Sep3 | B5: 김규리 | C5: SILVER | F5: 제주도 | G5: 11 | H5: 안동식 | I5: 일반회원 | K5: 정구왕 | L5: 2
A6: C_Tep3 | B6: 김동화 | C6: COPPER | F6: 안면도 | G6: 20 | H6: 김민철 | I6: V.I.P | K6: 정재현 | L6: 3
A7: C_Tep4 | B7: 김서현 | C7: GOLD | F7: 단양 | G7: 8 | H7: 장유익 | I7: 일반회원 | K7: 황진하 | L7: 2
A8: C_Tep5 | B8: 김서희 | C8: SILVER | F8: 삼척 | G8: 3 | H8: 강태공 | I8: 일반회원 | K8: 이윤태 | L8: 1
A9: C_Tep6 | B9: 류은서 | C9: GOLD | K9: 박한나 | L9: 3
A10: C_Tep7 | B10: 형민태 | C10: COPPER | H10: 회원명 | K10: 이미리 | L10: 4
A12: 고객등급별 사은품 목록 | L12: 수강과목별 할인율
A13: C | B13: S | C13: G | D13: D | L13: 수강과목수 | M13: 할인율
A14: 없음 | B14: 전화기 | C14: 스마트폰 | D14: 아이패드 | F14: [표5] | L14: 1 | M14: 0%
F15: 사원코드 | G15: 성명 | H15: 담당부서 | I15: 근무년수 | J15: 직위 | L15: 2 | M15: 5%
A16: [표 4] | F16: A-101 | G16: 김남이 | H16: 기획부 | I16: 16 | L16: 4 | M16: 10%
A17: 교수코드 | B17: 교수명 | C17: 평가점수 | D17: 결과 | F17: A-201 | G17: 이지영 | H17: 영업부 | I17: 13 | L17: 6 | M17: 15%
A18: CP-0701 | B18: 한가람 | C18: 190.15 | F18: B-312 | G18: 하나미 | H18: 기획부 | I18: 8
A19: CP-0503 | B19: 김은철 | C19: 166.93 | F19: C-245 | G19: 이정훈 | H19: 영업부 | I19: 12
A20: TC-9505 | B20: 고사리 | C20: 182.54 | F20: A-431 | G20: 임진태 | H20: 총무부 | I20: 4
A21: TC-7801 | B21: 박은별 | C21: 168.78 | F21: B-215 | G21: 강태형 | H21: 총무부 | I21: 11
A22: PT-0604 | B22: 성준서 | C22: 191.54 | F22: C-456 | G22: 피정우 | H22: 총무부 | I22: 3
A23: AC-0906 | B23: 이성연 | C23: 170.58 | F23: B-123 | G23: 이태민 | H23: 기획부 | I23: 15

Sheet 찾기1(결과)
A1: [표1] | F1: [표2] | K1: [표3]
A2: 고객번호 | B2: 고객명 | C2: 고객등급 | D2: 사은품 | F2: 위치 | G2: 이용일수 | H2: 회원명 | I2: 비고 | K2: 성명 | L2: 수강과목수 | M2: 수강료
A3: B_Sep1 | B3: 권태형 | C3: GOLD | D3: =HLOOKUP(LEFT(C3,1),$A$13:$D$14,2,0) -> 스마트폰 | F3: 통영 | G3: 10 | H3: 서현진 | I3: 우수회원 | K3: 김병수 | L3: 3 | M3: =L3*60000*(1-VLOOKUP(L3,$L$14:$M$17,2)) -> 171,000
A4: B_Sep2 | B4: 강주호 | C4: DIAMOND | D4: =HLOOKUP(LEFT(C4,1),$A$13:$D$14,2,0) -> 아이패드 | F4: 설악 | G4: 15 | H4: 하태훈 | I4: 우수회원 | K4: 차인태 | L4: 1 | M4: =L4*60000*(1-VLOOKUP(L4,$L$14:$M$17,2)) -> 60,000
A5: B_Sep3 | B5: 김규리 | C5: SILVER | D5: 전화기 | F5: 제주도 | G5: 11 | H5: 안동식 | I5: 일반회원 | K5: 정구왕 | L5: 2 | M5: 114,000
A6: C_Tep3 | B6: 김동화 | C6: COPPER | D6: 없음 | F6: 안면도 | G6: 20 | H6: 김민철 | I6: V.I.P | K6: 정재현 | L6: 3 | M6: 171,000
A7: C_Tep4 | B7: 김서현 | C7: GOLD | D7: 스마트폰 | F7: 단양 | G7: 8 | H7: 장유익 | I7: 일반회원 | K7: 황진하 | L7: 2 | M7: 114,000
A8: C_Tep5 | B8: 김서희 | C8: SILVER | D8: 전화기 | F8: 삼척 | G8: 3 | H8: 강태공 | I8: 일반회원 | K8: 이윤태 | L8: 1 | M8: 60,000
A9: C_Tep6 | B9: 류은서 | C9: GOLD | D9: 스마트폰 | K9: 박한나 | L9: 3 | M9: 171,000
A10: C_Tep7 | B10: 형민태 | C10: COPPER | D10: 없음 | H10: 회원명 | I10: =VLOOKUP(LARGE(G3:G8,1),G3:I8,2,0) -> 김민철 | K10: 이미리 | L10: 4 | M10: 216,000
A12: 고객등급별 사은품 목록 | L12: 수강과목별 할인율
A13: C | B13: S | C13: G | D13: D | L13: 수강과목수 | M13: 할인율
A14: 없음 | B14: 전화기 | C14: 스마트폰 | D14: 아이패드 | F14: [표5] | L14: 1 | M14: 0%
F15: 사원코드 | G15: 성명 | H15: 담당부서 | I15: 근무년수 | J15: 직위 | L15: 2 | M15: 5%
A16: [표 4] | F16: A-101 | G16: 김남이 | H16: 기획부 | I16: 16 | J16: =CHOOSE(MID(F16,3,1),"부장","과장","대리","사원") -> 부장 | L16: 4 | M16: 10%
A17: 교수코드 | B17: 교수명 | C17: 평가점수 | D17: 결과 | F17: A-201 | G17: 이지영 | H17: 영업부 | I17: 13 | J17: 과장 | L17: 6 | M17: 15%
A18: CP-0701 | B18: 한가람 | C18: 190.15 | D18: =CHOOSE(RANK(C18,$C$18:$C$23),"성과급","성과급","","","","감봉") -> 성과급 | F18: B-312 | G18: 하나미 | H18: 기획부 | I18: 8 | J18: 대리
A19: CP-0503 | B19: 김은철 | C19: 166.93 | D19: 감봉 | F19: C-245 | G19: 이정훈 | H19: 영업부 | I19: 12 | J19: 과장
A20: TC-9505 | B20: 고사리 | C20: 182.54 | F20: A-431 | G20: 임진태 | H20: 총무부 | I20: 4 | J20: 사원
A21: TC-7801 | B21: 박은별 | C21: 168.78 | F21: B-215 | G21: 강태형 | H21: 총무부 | I21: 11 | J21: 과장
A22: PT-0604 | B22: 성준서 | C22: 191.54 | D22: 성과급 | F22: C-456 | G22: 피정우 | H22: 총무부 | I22: 3 | J22: 사원
A23: AC-0906 | B23: 이성연 | C23: 170.58 | F23: B-123 | G23: 이태민 | H23: 기획부 | I23: 15 | J23: 부장

Sheet 찾기2(예제)
B1: • CHOOSE 함수
B2: 날짜 입력 | C2: 2017-03-31
B3: 요일은?
B5: • LOOKUP 함수
B6: 점수 | C6: 학점 | E6: 점수 입력 | F6: 80
B7: 0 | C7: 가 | E7: 학 점
B8: 60 | C8: 양
B9: 70 | C9: 미
B10: 80 | C10: 우
B11: 90 | C11: 수

Sheet 찾기2(결과)
B1: • CHOOSE 함수
B2: 날짜 입력 | C2: 2017-03-31
B3: 요일은? | C3: =CHOOSE(WEEKDAY(C2,2),"월","화","수","목","금","토","일") -> 금
B5: • LOOKUP 함수
B6: 점수 | C6: 학점 | E6: 점수 입력 | F6: 80
B7: 0 | C7: 가 | E7: 학 점 | F7: =LOOKUP(F6, B7:B11, C7:C11) -> 우
B8: 60 | C8: 양
B9: 70 | C9: 미
B10: 80 | C10: 우
B11: 90 | C11: 수

Sheet 찾기3(예제)
B1: • MATCH, INDEX 함수
G2: 수량에 대한 제품별 할인율
B3: 제품명 수량 | C3: 참외 | D3: 메론 | E3: 수박 | F3: 포도 | G3: 자두
B4: 0 | C4: 0% | D4: 1% | E4: 3% | F4: 3% | G4: 0%
B5: 100 | C5: 2% | D5: 3% | E5: 5% | F5: 5% | G5: 3%
B6: 200 | C6: 3% | D6: 6% | E6: 7% | F6: 7% | G6: 5%
B7: 300 | C7: 5% | D7: 8% | E7: 10% | F7: 10% | G7: 5%
B8: 400 | C8: 7% | D8: 10% | E8: 12% | F8: 15% | G8: 7%
B9: 500 | C9: 10% | D9: 15% | E9: 15% | F9: 20% | G9: 10%
B11: ＊ 주문 제품과 수량
B12: 제품명 | C12: 수박
B13: 수량 | C13: 150
B14: 행 위치(수량)
B15: 열 위치(제품명)
B16: 할인율
B17: 할인율

Sheet 찾기3(결과)
B1: • MATCH, INDEX 함수
G2: 수량에 대한 제품별 할인율
B3: 제품명 수량 | C3: 참외 | D3: 메론 | E3: 수박 | F3: 포도 | G3: 자두
B4: 0 | C4: 0% | D4: 1% | E4: 3% | F4: 3% | G4: 0%
B5: 100 | C5: 2% | D5: 3% | E5: 5% | F5: 5% | G5: 3%
B6: 200 | C6: 3% | D6: 6% | E6: 7% | F6: 7% | G6: 5%
B7: 300 | C7: 5% | D7: 8% | E7: 10% | F7: 10% | G7: 5%
B8: 400 | C8: 7% | D8: 10% | E8: 12% | F8: 15% | G8: 7%
B9: 500 | C9: 10% | D9: 15% | E9: 15% | F9: 20% | G9: 10%
B11: ＊ 주문 제품과 수량
B12: 제품명 | C12: 수박
B13: 수량 | C13: 150
B14: 행 위치(수량) | C14: =MATCH(C13,B4:B9,1) -> 2
B15: 열 위치(제품명) | C15: =MATCH(C12,C3:G3,0) -> 3
B16: 할인율 | C16: =INDEX(C4:G9,C14,C15) -> 5%
B17: 할인율 | C17: =INDEX(C4:G9,MATCH(C13,B4:B9,1),MATCH(C12,C3:G3,0)) -> 5%

Sheet 찾기4(예제)
C2: 열번호(COLUMN)
B3: [표1]
A4: 행번호(ROW) | C4: EXCEL | D4: EXCEL | E4: EXCEL | F4: EXCEL
C5: EXCEL | D5: EXCEL | E5: EXCEL | F5: EXCEL
C6: EXCEL | D6: EXCEL | E6: EXCEL | F6: EXCEL
C7: EXCEL | D7: EXCEL | E7: EXCEL | F7: EXCEL
C8: EXCEL | D8: EXCEL | E8: EXCEL | F8: EXCEL
B10: ① [B3:F8] 영역의 열의 개수는?
B11: ② [B3:F8] 영역의 행의 개수는?
B12: ③ [B2] 셀의 열 번호는?
B13: ④ [B2] 셀의 행 번호는?

Sheet 찾기4(결과)
C2: 열번호(COLUMN)
B3: [표1] | C3: =COLUMN()-2 -> 1 | D3: =COLUMN()-2 -> 2 | E3: =COLUMN()-2 -> 3 | F3: =COLUMN()-2 -> 4
A4: 행번호(ROW) | B4: =ROW()-3 -> 1 | C4: EXCEL | D4: EXCEL | E4: EXCEL | F4: EXCEL
B5: =ROW()-3 -> 2 | C5: EXCEL | D5: EXCEL | E5: EXCEL | F5: EXCEL
B6: =ROW()-3 -> 3 | C6: EXCEL | D6: EXCEL | E6: EXCEL | F6: EXCEL
B7: =ROW()-3 -> 4 | C7: EXCEL | D7: EXCEL | E7: EXCEL | F7: EXCEL
B8: =ROW()-3 -> 5 | C8: EXCEL | D8: EXCEL | E8: EXCEL | F8: EXCEL
B10: ① [B3:F8] 영역의 열의 개수는? | E10: =COLUMNS(B3:F8) -> 5
B11: ② [B3:F8] 영역의 행의 개수는? | E11: =ROWS(B3:F8) -> 6
B12: ③ [B2] 셀의 열 번호는? | E12: =COLUMN(B2) -> 2
B13: ④ [B2] 셀의 행 번호는? | E13: =ROW(B2) -> 2

Sheet 찾기5(예제)
A1: [표1] 부서별 매출표 | D1: 단위: 천원
A2: 2013 | B2: 국내영업부 | C2: 1사분기 | D2: 77,340 | H2: [표2] 부서별 연도 매출현황
C3: 2사분기 | D3: 117,283 | H3: 년도 | I3: 부서 | K3: 1
C4: 3사분기 | D4: 160,097 | H4: 2015 | I4: 기간 | J4: 매출액
C5: 4사분기 | D5: 101,905 | I5: 1사분기
B6: 특수사업부 | C6: 1사분기 | D6: 34,080 | I6: 2사분기
C7: 2사분기 | D7: 80,158 | I7: 3사분기
C8: 3사분기 | D8: 54,017 | I8: 4사분기
C9: 4사분기 | D9: 93,638 | H9: 합계 | I9: =SUM(J5:J8) -> 0
B10: 장비수출부 | C10: 1사분기 | D10: 190,234
C11: 2사분기 | D11: 51,467 | H11: [표3] 부서코드
C12: 3사분기 | D12: 139,523 | H12: 부서번호 | I12: 부서명 | J12: 문서 담당자 | K12: 행번호
C13: 4사분기 | D13: 36,850 | H13: 1 | I13: 국내영업부 | J13: 박무열 | K13: 0
A14: 2014 | B14: 국내영업부 | C14: 1사분기 | D14: 216,385 | H14: 2 | I14: 특수사업부 | J14: 김선영 | K14: 4
C15: 2사분기 | D15: 139,824 | H15: 3 | I15: 장비수출부 | J15: 조진호 | K15: 8
C16: 3사분기 | D16: 37,693
C17: 4사분기 | D17: 28,396
B18: 특수사업부 | C18: 1사분기 | D18: 101,905
C19: 2사분기 | D19: 126,662
C20: 3사분기 | D20: 38,928
C21: 4사분기 | D21: 34,060
B22: 장비수출부 | C22: 1사분기 | D22: 47,539
C23: 2사분기 | D23: 66,859
C24: 3사분기 | D24: 38,928
C25: 4사분기 | D25: 10,609
A26: 2015 | B26: 국내영업부 | C26: 1사분기 | D26: 8,310
C27: 2사분기 | D27: 4,902
C28: 3사분기 | D28: 6,354
C29: 4사분기 | D29: 3,604
B30: 특수사업부 | C30: 1사분기 | D30: 3,709
C31: 2사분기 | D31: 10,102
C32: 3사분기 | D32: 10,609
C33: 4사분기 | D33: 8,310
B34: 장비수출부 | C34: 1사분기 | D34: 10,102
C35: 2사분기 | D35: 6,354
C36: 3사분기 | D36: 3,604
C37: 4사분기 | D37: 6,334

Sheet 찾기5(결과)
A1: [표1] 부서별 매출표 | D1: 단위: 천원
A2: 2013 | B2: 국내영업부 | C2: 1사분기 | D2: 77,340 | H2: [표2] 부서별 연도 매출현황
C3: 2사분기 | D3: 117,283 | H3: 년도 | I3: 부서 | K3: 1
C4: 3사분기 | D4: 160,097 | H4: 2015 | I4: 기간 | J4: 매출액
C5: 4사분기 | D5: 101,905 | I5: 1사분기 | J5: =INDIRECT(ADDRESS(IF($H$4=2013,0,IF($H$4=2014,12,24))+VLOOKUP($K$3,$H$13:$K$15,4)+ROW()-3,COLUMN()-6)) -> 8,310
B6: 특수사업부 | C6: 1사분기 | D6: 34,080 | I6: 2사분기 | J6: =INDIRECT(ADDRESS(IF($H$4=2013,0,IF($H$4=2014,12,24))+VLOOKUP($K$3,$H$13:$K$15,4)+ROW()-3,COLUMN()-6)) -> 4,902
C7: 2사분기 | D7: 80,158 | I7: 3사분기 | J7: 6,354
C8: 3사분기 | D8: 54,017 | I8: 4사분기 | J8: 3,604
C9: 4사분기 | D9: 93,638 | H9: 합계 | I9: =SUM(J5:J8) -> ₩23,170
B10: 장비수출부 | C10: 1사분기 | D10: 190,234
C11: 2사분기 | D11: 51,467 | H11: [표3] 부서코드
C12: 3사분기 | D12: 139,523 | H12: 부서번호 | I12: 부서명 | J12: 문서 담당자 | K12: 행번호
C13: 4사분기 | D13: 36,850 | H13: 1 | I13: 국내영업부 | J13: 박무열 | K13: 0
A14: 2014 | B14: 국내영업부 | C14: 1사분기 | D14: 216,385 | H14: 2 | I14: 특수사업부 | J14: 김선영 | K14: 4
C15: 2사분기 | D15: 139,824 | H15: 3 | I15: 장비수출부 | J15: 조진호 | K15: 8
C16: 3사분기 | D16: 37,693
C17: 4사분기 | D17: 28,396
B18: 특수사업부 | C18: 1사분기 | D18: 101,905
C19: 2사분기 | D19: 126,662
C20: 3사분기 | D20: 38,928
C21: 4사분기 | D21: 34,060
B22: 장비수출부 | C22: 1사분기 | D22: 47,539
C23: 2사분기 | D23: 66,859
C24: 3사분기 | D24: 38,928
C25: 4사분기 | D25: 10,609
A26: 2015 | B26: 국내영업부 | C26: 1사분기 | D26: 8,310
C27: 2사분기 | D27: 4,902
C28: 3사분기 | D28: 6,354
C29: 4사분기 | D29: 3,604
B30: 특수사업부 | C30: 1사분기 | D30: 3,709
C31: 2사분기 | D31: 10,102
C32: 3사분기 | D32: 10,609
C33: 4사분기 | D33: 8,310
B34: 장비수출부 | C34: 1사분기 | D34: 10,102
C35: 2사분기 | D35: 6,354
C36: 3사분기 | D36: 3,604
C37: 4사분기 | D37: 6,334

Sheet 정보1(예제)
I2: 제품목록
B3: 번호 | C3: 품명 | D3: 규격 | E3: 수량 | F3: 단가 | G3: 공급가액 | I3: 품명 | J3: 규격 | K3: 단가
B4: 1 | C4: A001 | E4: 10 | I4: A001 | J4: Box | K4: 235,000
B5: 2 | C5: A003 | E5: 15 | I5: A002 | J5: 개 | K5: 127,000
B6: 3 | I6: A003 | J6: 개 | K6: 203,000
B7: 4 | I7: A004 | J7: 개 | K7: 67,000
B8: 5 | I8: A005 | J8: Box | K8: 103,000
B9: 6 | I9: A006 | J9: 개 | K9: 54,000
B10: 7 | I10: A007 | J10: 개 | K10: 135,000
B11: 합계 | G11: =SUM(G4:G10) -> 0 | I11: A008 | J11: 개 | K11: 113,000
I12: A009 | J12: 개 | K12: 114,000
I13: A010 | J13: 개 | K13: 192,000

Sheet 정보1(결과)
I2: 제품목록
B3: 번호 | C3: 품명 | D3: 규격 | E3: 수량 | F3: 단가 | G3: 공급가액 | I3: 품명 | J3: 규격 | K3: 단가
B4: 1 | C4: A001 | D4: =IF(ISBLANK(C4),"",VLOOKUP(C4,$I$4:$K$13,2,0)) -> Box | E4: 10 | F4: =IF(ISBLANK(C4),"",VLOOKUP(C4,$I$4:$K$13,3,0)) -> 235,000 | G4: =IF(ISERROR(E4*F4),"",E4*F4) -> 2,350,000 | I4: A001 | J4: Box | K4: 235,000
B5: 2 | C5: A003 | D5: 개 | E5: 15 | F5: =IF(ISBLANK(C5),"",VLOOKUP(C5,$I$4:$K$13,3,0)) -> 203,000 | G5: =IF(ISERROR(E5*F5),"",E5*F5) -> 3,045,000 | I5: A002 | J5: 개 | K5: 127,000
B6: 3 | I6: A003 | J6: 개 | K6: 203,000
B7: 4 | I7: A004 | J7: 개 | K7: 67,000
B8: 5 | I8: A005 | J8: Box | K8: 103,000
B9: 6 | I9: A006 | J9: 개 | K9: 54,000
B10: 7 | I10: A007 | J10: 개 | K10: 135,000
B11: 합계 | G11: =SUM(G4:G10) -> ₩5,395,000 | I11: A008 | J11: 개 | K11: 113,000
I12: A009 | J12: 개 | K12: 114,000
I13: A010 | J13: 개 | K13: 192,000

Sheet 정보2(예제)
A1: 컴퓨터 특기적성 입금
G2: 수강코드 | H2: A2225-5
A3: 번호 | B3: 이름 | C3: 주민번호 | D3: 성별 | E3: 좌석 | F3: 구분 | G3: 할인률 | H3: 수강료
B4: 김은미 | C4: 98xxxx-212xxxx | F4: 일반 | H4: =$E$15-($E$15*G4) -> 20,000
B5: 장희진 | C5: 99xxxx-232xxxx | F5: 생활보호대상자 | H5: =$E$15-($E$15*G5) -> 20,000
B6: 김원민 | C6: 97xxxx-132xxxx | F6: 일반 | H6: 20,000
B7: 이해미 | C7: 05xxxx-432xxxx | F7: 일반 | H7: 20,000
B8: 한장수 | C8: 99xxxx-142xxxx | F8: 일반 | H8: 20,000
B9: 노민혁 | C9: 00xxxx-356xxxx | F9: 기초생활수급자 | H9: 20,000
B10: 이기화 | C10: 98xxxx-285xxxx | F10: 국가유공자 | H10: 20,000
B11: 황인서 | C11: 01xxxx-432xxxx | F11: 일반 | H11: 20,000
B12: 성연정 | C12: 97xxxx-232xxxx | F12: 일반 | H12: 20,000
A13: 합계 | H13: =SUM(H4:H12) -> 180,000
A15: 할인 대상자 | B15: 수강료할인 | D15: 수강료 | E15: 20,000
A16: 생활보호대상자 | B16: 20%
A17: 기초생활수급자 | B17: 10%
A18: 국가유공자 | B18: 5%

Sheet 정보2(결과)
A1: 컴퓨터 특기적성 입금
G2: 수강코드 | H2: A2225-5
A3: 번호 | B3: 이름 | C3: 주민번호 | D3: 성별 | E3: 좌석 | F3: 구분 | G3: 할인률 | H3: 수강료
A4: =CELL("contents",$H$2)&"-"&CELL("row",A1) -> A2225-5-1 | B4: 김은미 | C4: 98xxxx-212xxxx | D4: =IF(ISODD(MID(C4,8,1)),"남","여") -> 여 | E4: =IF(ISEVEN(LEFT(C4,2)),"2분단","1분단") -> 2분단 | F4: 일반 | G4: =IF(TYPE(VLOOKUP(F4,$A$16:$B$18,2,FALSE))=1,VLOOKUP(F4,$A$16:$B$18,2,FALSE),0) -> 0 | H4: =$E$15-($E$15*G4) -> 20,000
A5: =CELL("contents",$H$2)&"-"&CELL("row",A2) -> A2225-5-2 | B5: 장희진 | C5: 99xxxx-232xxxx | D5: =IF(ISODD(MID(C5,8,1)),"남","여") -> 여 | E5: =IF(ISEVEN(LEFT(C5,2)),"2분단","1분단") -> 1분단 | F5: 생활보호대상자 | G5: =IF(TYPE(VLOOKUP(F5,$A$16:$B$18,2,FALSE))=1,VLOOKUP(F5,$A$16:$B$18,2,FALSE),0) -> 0.2 | H5: =$E$15-($E$15*G5) -> 16,000
A6: A2225-5-3 | B6: 김원민 | C6: 97xxxx-132xxxx | D6: 남 | E6: 1분단 | F6: 일반 | G6: 0 | H6: 20,000
A7: A2225-5-4 | B7: 이해미 | C7: 05xxxx-432xxxx | D7: 여 | E7: 1분단 | F7: 일반 | G7: 0 | H7: 20,000
A8: A2225-5-5 | B8: 한장수 | C8: 99xxxx-142xxxx | D8: 남 | E8: 1분단 | F8: 일반 | G8: 0 | H8: 20,000
A9: A2225-5-6 | B9: 노민혁 | C9: 00xxxx-356xxxx | D9: 남 | E9: 2분단 | F9: 기초생활수급자 | G9: 0.1 | H9: 18,000
A10: A2225-5-7 | B10: 이기화 | C10: 98xxxx-285xxxx | D10: 여 | E10: 2분단 | F10: 국가유공자 | G10: 0.05 | H10: 19,000
A11: A2225-5-8 | B11: 황인서 | C11: 01xxxx-432xxxx | D11: 여 | E11: 1분단 | F11: 일반 | G11: 0 | H11: 20,000
A12: A2225-5-9 | B12: 성연정 | C12: 97xxxx-232xxxx | D12: 여 | E12: 1분단 | F12: 일반 | G12: 0 | H12: 20,000
A13: 합계 | H13: =SUM(H4:H12) -> 173,000
A15: 할인 대상자 | B15: 수강료할인 | D15: 수강료 | E15: 20,000
A16: 생활보호대상자 | B16: 20%
A17: 기초생활수급자 | B17: 10%
A18: 국가유공자 | B18: 5%

Sheet 실습1(예제)
A1: [표1] 채용 시험 성적 | G1: [표2] 상여금 지급 현황
A2: 수험번호 | B2: 이름 | C2: 성별 | D2: 성적 | K2: (단위:천원)
A3: 2004001 | B3: 강진정 | C3: 남 | D3: 83 | G3: 팀별 | H3: 성명 | I3: 사번 | J3: 본봉 | K3: 상여금
A4: 2004002 | B4: 김용민 | C4: 여 | D4: 67 | G4: 재무팀 | H4: 김나래 | I4: 9711P | J4: 1,800
A5: 2004003 | B5: 진경만 | C5: 여 | D5: 90 | G5: 재무팀 | H5: 윤기상 | I5: 9801A | J5: 1,500
A6: 2004004 | B6: 박자희 | C6: 남 | D6: 71 | G6: 영업팀 | H6: 황선호 | I6: 9914A | J6: 1,200
A7: 2004005 | B7: 고현주 | C7: 여 | D7: 96 | G7: 영업팀 | H7: 이재만 | I7: 9822Q | J7: 2,200
A8: 2004006 | B8: 성현이 | C8: 여 | D8: 98 | G8: 기획팀 | H8: 허준용 | I8: 9901B | J8: 1,300
A9: 2004007 | B9: 임수정 | C9: 남 | D9: 100 | G9: 기획팀 | H9: 방기차 | I9: 9612P | J9: 2,000
A10: 2004008 | B10: 주철한 | C10: 남 | D10: 53 | G10: 홍보팀 | H10: 채만종 | I10: 9912P | J10: 1,000
A11: 2004009 | B11: 나혼정 | C11: 여 | D11: 45
G12: 상여금 지급 기준표
C13: 표준편차(남) | G13: 입사년도 | H13: 96 | I13: 97 | J13: 98 | K13: 99
G14: 구성비율(%) | H14: 27% | I14: 35% | J14: 23% | K14: 15%
A15: [표3] 필기 시험 평가 | G15: 상여금 | H15: 1,250 | I15: 950 | J15: 870 | K15: 720
A16: 성명 | B16: 영어 | C16: 전산 | D16: 상식 | E16: 평가
A17: 장혁준 | B17: 75 | C17: 86 | D17: 85
A18: 이선돌 | B18: 92 | C18: 89 | D18: 94 | G18: [표4] 청소년 수련원 입소예약
A19: 민영호 | B19: 50 | C19: 98 | D19: 90 | G19: 접수코드 | H19: 동아리명 | I19: 입소월 | J19: 예정인원 | K19: 수련원명
A20: 곽태우 | B20: 55 | C20: 90 | D20: 95 | G20: K001-1 | H20: 가야 | I20: 4월 | J20: 24
A21: 전준호 | B21: 65 | C21: 85 | D21: 70 | G21: K001-2 | H21: 걸스 | I21: 5월 | J21: 32
A22: 박태식 | B22: 75 | C22: 65 | D22: 40 | G22: S001-3 | H22: 한별 | I22: 5월 | J22: 45
A23: 차만석 | B23: 86 | C23: 100 | D23: 95 | G23: S001-4 | H23: 참빛 | I23: 6월 | J23: 68
A24: 이미자 | B24: 85 | C24: 68 | D24: 98 | G24: K002-2 | H24: 너럭 | I24: 6월 | J24: 55
G25: K003-2 | H25: 참사랑 | I25: 7월 | J25: 24
G26: S002-3 | H26: 새벽 | I26: 8월 | J26: 58
A27: [표5] 매출 판매 수량 집계 | E27: (단위 : 대) | G27: S001-1 | H27: 울트라 | I27: 8월 | J27: 30
A28: 판매점 | B28: 냉장고 | C28: 홈시어터 | D28: 세탁기 | E28: 합계
A29: 중구 | B29: 78 | C29: 86 | D29: 75 | E29: =SUM(C29:D29) -> 161
A30: 동구 | B30: 85 | C30: 86 | D30: 95 | E30: =SUM(C30:D30) -> 181 | F30: 중구지점의 냉장고 최대수량과 중구지점의 세탁기 최소수량의 차이
A31: 중구 | B31: 98 | C31: 78 | D31: 98 | E31: 176
A32: 북구 | B32: 100 | C32: 95 | D32: 98 | E32: 193
A33: 동구 | B33: 85 | C33: 75 | D33: 75 | E33: 150
A34: 중구 | B34: 100 | C34: 95 | D34: 98 | E34: 193
A35: 북구 | B35: 85 | C35: 75 | D35: 75 | E35: 150

Sheet 실습1(결과)
A1: [표1] 채용 시험 성적 | G1: [표2] 상여금 지급 현황
A2: 수험번호 | B2: 이름 | C2: 성별 | D2: 성적 | K2: (단위:천원)
A3: 2004001 | B3: 강진정 | C3: 남 | D3: 83 | G3: 팀별 | H3: 성명 | I3: 사번 | J3: 본봉 | K3: 상여금
A4: 2004002 | B4: 김용민 | C4: 여 | D4: 67 | G4: 재무팀 | H4: 김나래 | I4: 9711P | J4: 1,800 | K4: =HLOOKUP(LEFT(I4,2),$H$13:$K$15,3,0) -> 950
A5: 2004003 | B5: 진경만 | C5: 여 | D5: 90 | G5: 재무팀 | H5: 윤기상 | I5: 9801A | J5: 1,500 | K5: =HLOOKUP(LEFT(I5,2),$H$13:$K$15,3,0) -> 870
A6: 2004004 | B6: 박자희 | C6: 남 | D6: 71 | G6: 영업팀 | H6: 황선호 | I6: 9914A | J6: 1,200 | K6: 720
A7: 2004005 | B7: 고현주 | C7: 여 | D7: 96 | G7: 영업팀 | H7: 이재만 | I7: 9822Q | J7: 2,200 | K7: 870
A8: 2004006 | B8: 성현이 | C8: 여 | D8: 98 | G8: 기획팀 | H8: 허준용 | I8: 9901B | J8: 1,300 | K8: 720
A9: 2004007 | B9: 임수정 | C9: 남 | D9: 100 | G9: 기획팀 | H9: 방기차 | I9: 9612P | J9: 2,000 | K9: 1,250
A10: 2004008 | B10: 주철한 | C10: 남 | D10: 53 | G10: 홍보팀 | H10: 채만종 | I10: 9912P | J10: 1,000 | K10: 720
A11: 2004009 | B11: 나혼정 | C11: 여 | D11: 45
G12: 상여금 지급 기준표
C13: 표준편차(남) | D13: =ROUNDUP(DSTDEV(A2:D11,D2,C2:C3),1) -> 19.9 | G13: 입사년도 | H13: 96 | I13: 97 | J13: 98 | K13: 99
G14: 구성비율(%) | H14: 27% | I14: 35% | J14: 23% | K14: 15%
A15: [표3] 필기 시험 평가 | G15: 상여금 | H15: 1,250 | I15: 950 | J15: 870 | K15: 720
A16: 성명 | B16: 영어 | C16: 전산 | D16: 상식 | E16: 평가
A17: 장혁준 | B17: 75 | C17: 86 | D17: 85 | E17: =IF(SUM(B17:D17)>=270,"우수상","") -> 
A18: 이선돌 | B18: 92 | C18: 89 | D18: 94 | E18: =IF(SUM(B18:D18)>=270,"우수상","") -> 우수상 | G18: [표4] 청소년 수련원 입소예약
A19: 민영호 | B19: 50 | C19: 98 | D19: 90 | G19: 접수코드 | H19: 동아리명 | I19: 입소월 | J19: 예정인원 | K19: 수련원명
A20: 곽태우 | B20: 55 | C20: 90 | D20: 95 | G20: K001-1 | H20: 가야 | I20: 4월 | J20: 24 | K20: =CHOOSE(RIGHT(G20,1),"청평","대성리","대천","파주") -> 청평
A21: 전준호 | B21: 65 | C21: 85 | D21: 70 | G21: K001-2 | H21: 걸스 | I21: 5월 | J21: 32 | K21: =CHOOSE(RIGHT(G21,1),"청평","대성리","대천","파주") -> 대성리
A22: 박태식 | B22: 75 | C22: 65 | D22: 40 | G22: S001-3 | H22: 한별 | I22: 5월 | J22: 45 | K22: 대천
A23: 차만석 | B23: 86 | C23: 100 | D23: 95 | E23: 우수상 | G23: S001-4 | H23: 참빛 | I23: 6월 | J23: 68 | K23: 파주
A24: 이미자 | B24: 85 | C24: 68 | D24: 98 | G24: K002-2 | H24: 너럭 | I24: 6월 | J24: 55 | K24: 대성리
G25: K003-2 | H25: 참사랑 | I25: 7월 | J25: 24 | K25: 대성리
G26: S002-3 | H26: 새벽 | I26: 8월 | J26: 58 | K26: 대천
A27: [표5] 매출 판매 수량 집계 | E27: (단위 : 대) | G27: S001-1 | H27: 울트라 | I27: 8월 | J27: 30 | K27: 청평
A28: 판매점 | B28: 냉장고 | C28: 홈시어터 | D28: 세탁기 | E28: 합계
A29: 중구 | B29: 78 | C29: 86 | D29: 75 | E29: =SUM(C29:D29) -> 161
A30: 동구 | B30: 85 | C30: 86 | D30: 95 | E30: =SUM(C30:D30) -> 181 | F30: 중구지점의 냉장고 최대수량과 중구지점의 세탁기 최소수량의 차이
A31: 중구 | B31: 98 | C31: 78 | D31: 98 | E31: 176 | F31: =ABS(DMAX(A28:E35,B28,A28:A29)-DMIN(A28:E35,D28,A28:A29)) -> 25
A32: 북구 | B32: 100 | C32: 95 | D32: 98 | E32: 193
A33: 동구 | B33: 85 | C33: 75 | D33: 75 | E33: 150
A34: 중구 | B34: 100 | C34: 95 | D34: 98 | E34: 193
A35: 북구 | B35: 85 | C35: 75 | D35: 75 | E35: 150

Sheet 배열수식(예제)
A1: 이름 | B1: 성별 | C1: 금액
A2: 강희정 | B2: 여 | C2: 10,000
A3: 김민수 | B3: 남 | C3: 15,000
A4: 민성민 | B4: 남 | C4: 10,000
A5: 박정아 | B5: 여 | C5: 20,000
A6: 나인성 | B6: 남 | C6: 17,000
A8: 남자 금액 합계
A10: 남자 인원수

Sheet 배열수식(결과)
A1: 이름 | B1: 성별 | C1: 금액
A2: 강희정 | B2: 여 | C2: 10,000
A3: 김민수 | B3: 남 | C3: 15,000
A4: 민성민 | B4: 남 | C4: 10,000
A5: 박정아 | B5: 여 | C5: 20,000
A6: 나인성 | B6: 남 | C6: 17,000
A8: 남자 금액 합계 | C8: =SUM((B2:B6="남")*C2:C6) -> 42,000
A10: 남자 인원수 | C10: =SUM((B2:B6="남")*1) -> 3

Sheet 배열1(예제)
A1: [표1]
A2: 부서별 성적분포
A3: 부서 | B3: 직무수행 평균 | C3: 인원수
A4: 관리부
A5: 기술부
A6: 기획실
A7: 인사부
A9: [표2]
A10: 부서명 | B10: 이름 | C10: 직무수행 | D10: 이해판단 | E10: 성실책임 | F10: 절충협조
A11: 기획실 | B11: 이나영 | C11: 82 | D11: 56 | E11: 77 | F11: 91
A12: 기획실 | B12: 방극준 | C12: 85 | D12: 70 | E12: 78 | F12: 62
A13: 기술부 | B13: 이원섭 | C13: 91 | D13: 62 | E13: 70 | F13: 82
A14: 기술부 | B14: 정태은 | C14: 92 | D14: 90 | E14: 78 | F14: 85
A15: 기획실 | B15: 최재석 | C15: 87 | D15: 85 | E15: 82 | F15: 70
A16: 관리부 | B16: 최준기 | C16: 78 | D16: 68 | E16: 78 | F16: 91
A17: 관리부 | B17: 이원형 | C17: 77 | D17: 78 | E17: 82 | F17: 91
A18: 인사부 | B18: 홍지원 | C18: 77 | D18: 78 | E18: 76 | F18: 80
A19: 기술부 | B19: 정은숙 | C19: 96 | D19: 82 | E19: 78 | F19: 56
A20: 기획실 | B20: 김지영 | C20: 84 | D20: 78 | E20: 69 | F20: 70
A21: 기획실 | B21: 박영훈 | C21: 75 | D21: 79 | E21: 82 | F21: 82
A22: 인사부 | B22: 이준성 | C22: 72 | D22: 92 | E22: 95 | F22: 90
A23: 인사부 | B23: 전광일 | C23: 88 | D23: 95 | E23: 89 | F23: 82
A24: 기술부 | B24: 유제관 | C24: 92 | D24: 68 | E24: 77 | F24: 75
A25: 인사부 | B25: 김민영 | C25: 84 | D25: 56 | E25: 67 | F25: 87
A26: 기획실 | B26: 도경민 | C26: 97 | D26: 89 | E26: 88 | F26: 77
A27: 관리부 | B27: 인정제 | C27: 88 | D27: 69 | E27: 72 | F27: 68
A28: 기술부 | B28: 최대훈 | C28: 88 | D28: 91 | E28: 78 | F28: 85
A29: 인사부 | B29: 윤여송 | C29: 66 | D29: 92 | E29: 90 | F29: 97
A30: 기획실 | B30: 유근선 | C30: 92 | D30: 68 | E30: 91 | F30: 91
A31: 관리부 | B31: 정환호 | C31: 81 | D31: 78 | E31: 82 | F31: 77
A32: 관리부 | B32: 이응표 | C32: 76 | D32: 82 | E32: 80 | F32: 75
A33: 인사부 | B33: 이지수 | C33: 98 | D33: 98 | E33: 90 | F33: 80

Sheet 배열1(결과)
A1: [표1]
A2: 부서별 성적분포
A3: 부서 | B3: 직무수행 평균 | C3: 인원수
A4: 관리부 | B4: =AVERAGE(IF($A$11:$A$33=A4,$C$11:$C$33)) -> 80 | C4: =SUM(IF($A$11:$A$33=A4,1)) -> 5
A5: 기술부 | B5: =AVERAGE(IF($A$11:$A$33=A5,$C$11:$C$33)) -> 91.8 | C5: =SUM(IF($A$11:$A$33=A5,1)) -> 5
A6: 기획실 | B6: =AVERAGE(IF($A$11:$A$33=A6,$C$11:$C$33)) -> 86 | C6: =SUM(IF($A$11:$A$33=A6,1)) -> 7
A7: 인사부 | B7: =AVERAGE(IF($A$11:$A$33=A7,$C$11:$C$33)) -> 80.83333333 | C7: =SUM(IF($A$11:$A$33=A7,1)) -> 6
A9: [표2]
A10: 부서명 | B10: 이름 | C10: 직무수행 | D10: 이해판단 | E10: 성실책임 | F10: 절충협조
A11: 기획실 | B11: 이나영 | C11: 82 | D11: 56 | E11: 77 | F11: 91
A12: 기획실 | B12: 방극준 | C12: 85 | D12: 70 | E12: 78 | F12: 62
A13: 기술부 | B13: 이원섭 | C13: 91 | D13: 62 | E13: 70 | F13: 82
A14: 기술부 | B14: 정태은 | C14: 92 | D14: 90 | E14: 78 | F14: 85
A15: 기획실 | B15: 최재석 | C15: 87 | D15: 85 | E15: 82 | F15: 70
A16: 관리부 | B16: 최준기 | C16: 78 | D16: 68 | E16: 78 | F16: 91
A17: 관리부 | B17: 이원형 | C17: 77 | D17: 78 | E17: 82 | F17: 91
A18: 인사부 | B18: 홍지원 | C18: 77 | D18: 78 | E18: 76 | F18: 80
A19: 기술부 | B19: 정은숙 | C19: 96 | D19: 82 | E19: 78 | F19: 56
A20: 기획실 | B20: 김지영 | C20: 84 | D20: 78 | E20: 69 | F20: 70
A21: 기획실 | B21: 박영훈 | C21: 75 | D21: 79 | E21: 82 | F21: 82
A22: 인사부 | B22: 이준성 | C22: 72 | D22: 92 | E22: 95 | F22: 90
A23: 인사부 | B23: 전광일 | C23: 88 | D23: 95 | E23: 89 | F23: 82
A24: 기술부 | B24: 유제관 | C24: 92 | D24: 68 | E24: 77 | F24: 75
A25: 인사부 | B25: 김민영 | C25: 84 | D25: 56 | E25: 67 | F25: 87
A26: 기획실 | B26: 도경민 | C26: 97 | D26: 89 | E26: 88 | F26: 77
A27: 관리부 | B27: 인정제 | C27: 88 | D27: 69 | E27: 72 | F27: 68
A28: 기술부 | B28: 최대훈 | C28: 88 | D28: 91 | E28: 78 | F28: 85
A29: 인사부 | B29: 윤여송 | C29: 66 | D29: 92 | E29: 90 | F29: 97
A30: 기획실 | B30: 유근선 | C30: 92 | D30: 68 | E30: 91 | F30: 91
A31: 관리부 | B31: 정환호 | C31: 81 | D31: 78 | E31: 82 | F31: 77
A32: 관리부 | B32: 이응표 | C32: 76 | D32: 82 | E32: 80 | F32: 75
A33: 인사부 | B33: 이지수 | C33: 98 | D33: 98 | E33: 90 | F33: 80

Sheet 배열2(예제)
A1: [표1]
A2: 과목명 | B2: 성명 | C2: 학과 | D2: 출석 | E2: 과제 | F2: 중간 | G2: 기말 | I2: [표2]
A3: C002 | B3: 김대성 | C3: 컴퓨터공학과 | D3: 18 | E3: 20 | F3: 25 | G3: 20 | I3: 과목명 | J3: 전자공학과 | K3: 컴퓨터공학과
A4: C002 | B4: 지민희 | C4: 컴퓨터공학과 | D4: 20 | E4: 20 | F4: 22 | G4: 18 | I4: C002
A5: C002 | B5: 형민석 | C5: 컴퓨터공학과 | D5: 16 | E5: 19 | F5: 17 | G5: 25 | I5: P007
A6: C002 | B6: 이현실 | C6: 컴퓨터공학과 | D6: 15 | E6: 15 | F6: 13 | G6: 26 | I6: C005
A7: P007 | B7: 김대성 | C7: 컴퓨터공학과 | D7: 20 | E7: 13 | F7: 24 | G7: 26 | I7: S006
A8: P007 | B8: 지민희 | C8: 컴퓨터공학과 | D8: 15 | E8: 20 | F8: 26 | G8: 24 | I8: P001
A9: P007 | B9: 이현실 | C9: 컴퓨터공학과 | D9: 12 | E9: 15 | F9: 20 | G9: 22
A10: P007 | B10: 이성희 | C10: 컴퓨터공학과 | D10: 18 | E10: 17 | F10: 18 | G10: 13 | I10: [표3]
A11: P007 | B11: 송창민 | C11: 컴퓨터공학과 | D11: 20 | E11: 16 | F11: 24 | G11: 18 | I11: 학과 | J11: 출석 | K11: 과제 | L11: 중간 | M11: 기말
A12: C005 | B12: 장충태 | C12: 전자공학과 | D12: 16 | E12: 14 | F12: 10 | G12: 12 | I12: 컴퓨터공학과
A13: C005 | B13: 최종민 | C13: 전자공학과 | D13: 19 | E13: 17 | F13: 20 | G13: 20 | I13: 전자공학과
A14: C005 | B14: 한가영 | C14: 전자공학과 | D14: 17 | E14: 16 | F14: 28 | G14: 17
A15: C005 | B15: 심학철 | C15: 전자공학과 | D15: 20 | E15: 18 | F15: 30 | G15: 28
A16: S006 | B16: 한가영 | C16: 전자공학과 | D16: 20 | E16: 20 | F16: 28 | G16: 30
A17: S006 | B17: 진명훈 | C17: 전자공학과 | D17: 18 | E17: 13 | F17: 24 | G17: 8
A18: S006 | B18: 조인희 | C18: 전자공학과 | D18: 20 | E18: 15 | F18: 24 | G18: 12
A19: P001 | B19: 이성희 | C19: 컴퓨터공학과 | D19: 20 | E19: 20 | F19: 28 | G19: 28
A20: P001 | B20: 송창민 | C20: 컴퓨터공학과 | D20: 20 | E20: 20 | F20: 30 | G20: 20
A21: P001 | B21: 형민석 | C21: 컴퓨터공학과 | D21: 18 | E21: 18 | F21: 22 | G21: 28
A22: P001 | B22: 최준석 | C22: 컴퓨터공학과 | D22: 16 | E22: 18 | F22: 18 | G22: 22
A23: P001 | B23: 이성희 | C23: 컴퓨터공학과 | D23: 12 | E23: 12 | F23: 20 | G23: 12

Sheet 배열2(결과)
A1: [표1]
A2: 과목명 | B2: 성명 | C2: 학과 | D2: 출석 | E2: 과제 | F2: 중간 | G2: 기말 | I2: [표2]
A3: C002 | B3: 김대성 | C3: 컴퓨터공학과 | D3: 18 | E3: 20 | F3: 25 | G3: 20 | I3: 과목명 | J3: 전자공학과 | K3: 컴퓨터공학과
A4: C002 | B4: 지민희 | C4: 컴퓨터공학과 | D4: 20 | E4: 20 | F4: 22 | G4: 18 | I4: C002 | J4: =SUM(($A$3:$A$23=$I4)*($C$3:$C$23=J$3)) -> 0 | K4: =SUM(($A$3:$A$23=$I4)*($C$3:$C$23=K$3)) -> 4
A5: C002 | B5: 형민석 | C5: 컴퓨터공학과 | D5: 16 | E5: 19 | F5: 17 | G5: 25 | I5: P007 | J5: =SUM(($A$3:$A$23=$I5)*($C$3:$C$23=J$3)) -> 0 | K5: =SUM(($A$3:$A$23=$I5)*($C$3:$C$23=K$3)) -> 5
A6: C002 | B6: 이현실 | C6: 컴퓨터공학과 | D6: 15 | E6: 15 | F6: 13 | G6: 26 | I6: C005 | J6: =SUM(($A$3:$A$23=$I6)*($C$3:$C$23=J$3)) -> 4 | K6: =SUM(($A$3:$A$23=$I6)*($C$3:$C$23=K$3)) -> 0
A7: P007 | B7: 김대성 | C7: 컴퓨터공학과 | D7: 20 | E7: 13 | F7: 24 | G7: 26 | I7: S006 | J7: =SUM(($A$3:$A$23=$I7)*($C$3:$C$23=J$3)) -> 3 | K7: =SUM(($A$3:$A$23=$I7)*($C$3:$C$23=K$3)) -> 0
A8: P007 | B8: 지민희 | C8: 컴퓨터공학과 | D8: 15 | E8: 20 | F8: 26 | G8: 24 | I8: P001 | J8: =SUM(($A$3:$A$23=$I8)*($C$3:$C$23=J$3)) -> 0 | K8: =SUM(($A$3:$A$23=$I8)*($C$3:$C$23=K$3)) -> 5
A9: P007 | B9: 이현실 | C9: 컴퓨터공학과 | D9: 12 | E9: 15 | F9: 20 | G9: 22
A10: P007 | B10: 이성희 | C10: 컴퓨터공학과 | D10: 18 | E10: 17 | F10: 18 | G10: 13 | I10: [표3]
A11: P007 | B11: 송창민 | C11: 컴퓨터공학과 | D11: 20 | E11: 16 | F11: 24 | G11: 18 | I11: 학과 | J11: 출석 | K11: 과제 | L11: 중간 | M11: 기말
A12: C005 | B12: 장충태 | C12: 전자공학과 | D12: 16 | E12: 14 | F12: 10 | G12: 12 | I12: 컴퓨터공학과 | J12: =AVERAGE(IF($C$3:$C$23=$I12,D$3:D$23)) -> 17.1 | K12: =AVERAGE(IF($C$3:$C$23=$I12,E$3:E$23)) -> 17.4 | L12: =AVERAGE(IF($C$3:$C$23=$I12,F$3:F$23)) -> 21.9 | M12: =AVERAGE(IF($C$3:$C$23=$I12,G$3:G$23)) -> 21.6
A13: C005 | B13: 최종민 | C13: 전자공학과 | D13: 19 | E13: 17 | F13: 20 | G13: 20 | I13: 전자공학과 | J13: =AVERAGE(IF($C$3:$C$23=$I13,D$3:D$23)) -> 18.6 | K13: =AVERAGE(IF($C$3:$C$23=$I13,E$3:E$23)) -> 16.1 | L13: =AVERAGE(IF($C$3:$C$23=$I13,F$3:F$23)) -> 23.4 | M13: =AVERAGE(IF($C$3:$C$23=$I13,G$3:G$23)) -> 18.1
A14: C005 | B14: 한가영 | C14: 전자공학과 | D14: 17 | E14: 16 | F14: 28 | G14: 17
A15: C005 | B15: 심학철 | C15: 전자공학과 | D15: 20 | E15: 18 | F15: 30 | G15: 28
A16: S006 | B16: 한가영 | C16: 전자공학과 | D16: 20 | E16: 20 | F16: 28 | G16: 30
A17: S006 | B17: 진명훈 | C17: 전자공학과 | D17: 18 | E17: 13 | F17: 24 | G17: 8
A18: S006 | B18: 조인희 | C18: 전자공학과 | D18: 20 | E18: 15 | F18: 24 | G18: 12
A19: P001 | B19: 이성희 | C19: 컴퓨터공학과 | D19: 20 | E19: 20 | F19: 28 | G19: 28
A20: P001 | B20: 송창민 | C20: 컴퓨터공학과 | D20: 20 | E20: 20 | F20: 30 | G20: 20
A21: P001 | B21: 형민석 | C21: 컴퓨터공학과 | D21: 18 | E21: 18 | F21: 22 | G21: 28
A22: P001 | B22: 최준석 | C22: 컴퓨터공학과 | D22: 16 | E22: 18 | F22: 18 | G22: 22
A23: P001 | B23: 이성희 | C23: 컴퓨터공학과 | D23: 12 | E23: 12 | F23: 20 | G23: 12

Sheet 배열3(예제)
A1: [표1] 분류코드별 최고 월평균임금 | E1: [표2] 분류코드 SA의 업무코드별 종사자수의 합계
A2: 분류코드 | B2: 최고 월평균임금 | E2: 업무코드 | F2: 종사자수 합계
A3: SA | E3: 분석가
A4: AP | E4: 관리자
E5: 기획자
A6: [표3]
A7: 분류코드 | B7: 업무구분 | C7: 종사자수 | D7: 월평균임금 | E7: 전년월평균임금 | F7: 평균경력
A8: SA | B8: 시스템설계분석가 | C8: 4,829 | D8: 3,420,000 | E8: 3,100,000 | F8: 8
A9: SA | B9: IT컨설턴트 | C9: 14,195 | D9: 3,090,000 | E9: 3,000,000 | F9: 5.9
A10: AP | B10: 시스템SW개발자 | C10: 8,130 | D10: 2,560,000 | E10: 2,400,000 | F10: 6.5
A11: SA | B11: 보안관리자 | C11: 5,797 | D11: 2,540,000 | E11: 2,450,000 | F11: 6
A12: SA | B12: NW분석가 | C12: 3,168 | D12: 2,290,000 | E12: 2,450,000 | F12: 4.9
A13: AP | B13: 응용SW개발자 | C13: 114,054 | D13: 2,200,000 | E13: 2,350,000 | F13: 5.4
A14: SA | B14: SM관리자 | C14: 76,947 | D14: 1,990,000 | E14: 2,100,000 | F14: 6.7
A15: AP | B15: 웹개발자 | C15: 15,887 | D15: 1,640,000 | E15: 1,850,000 | F15: 4.1
A16: SA | B16: 웹관리자 | C16: 32,931 | D16: 1,490,000 | E16: 1,650,000 | F16: 3.1
A17: AP | B17: 통신관리자 | C17: 31,080 | D17: 1,750,000 | E17: 2,540,000 | F17: 8.4
A18: AP | B18: 통신케이블설치 | C18: 21,786 | D18: 1,840,000 | E18: 1,910,000 | F18: 10.6
A19: AP | B19: 멀티미디어기획자 | C19: 2,258 | D19: 1,790,000 | E19: 1,950,000 | F19: 3.4
A20: SA | B20: 망기획자 | C20: 9,470 | D20: 1,520,000 | E20: 1,300,000 | F20: 9.7
A21: SA | B21: PC수리원 | C21: 37,802 | D21: 1,730,000 | E21: 1,750,000 | F21: 4.9
A22: AP | B22: PC강사 | C22: 21,146 | D22: 1,190,000 | E22: 1,200,000 | F22: 2.8
A23: SA | B23: 정보통신관리자 | C23: 21,222 | D23: 1,460,000 | E23: 3,300,000 | F23: 12.9

Sheet 배열3(결과)
A1: [표1] 분류코드별 최고 월평균임금 | E1: [표2] 분류코드 SA의 업무코드별 종사자수의 합계
A2: 분류코드 | B2: 최고 월평균임금 | E2: 업무코드 | F2: 종사자수 합계
A3: SA | B3: =MAX(IF(($A$8:$A$23=$A3),$D$8:$D$23)) -> 3,420,000 | E3: 분석가 | F3: =SUM((RIGHT($B$8:$B$23,3)=$E3)*($A$8:$A$23="SA")*$C$8:$C$23) -> 7,997
A4: AP | B4: =MAX(IF(($A$8:$A$23=$A4),$D$8:$D$23)) -> 2,560,000 | E4: 관리자 | F4: =SUM((RIGHT($B$8:$B$23,3)=$E4)*($A$8:$A$23="SA")*$C$8:$C$23) -> 136,897
E5: 기획자 | F5: =SUM((RIGHT($B$8:$B$23,3)=$E5)*($A$8:$A$23="SA")*$C$8:$C$23) -> 9,470
A6: [표3]
A7: 분류코드 | B7: 업무구분 | C7: 종사자수 | D7: 월평균임금 | E7: 전년월평균임금 | F7: 평균경력
A8: SA | B8: 시스템설계분석가 | C8: 4,829 | D8: 3,420,000 | E8: 3,100,000 | F8: 8
A9: SA | B9: IT컨설턴트 | C9: 14,195 | D9: 3,090,000 | E9: 3,000,000 | F9: 5.9
A10: AP | B10: 시스템SW개발자 | C10: 8,130 | D10: 2,560,000 | E10: 2,400,000 | F10: 6.5
A11: SA | B11: 보안관리자 | C11: 5,797 | D11: 2,540,000 | E11: 2,450,000 | F11: 6
A12: SA | B12: NW분석가 | C12: 3,168 | D12: 2,290,000 | E12: 2,450,000 | F12: 4.9
A13: AP | B13: 응용SW개발자 | C13: 114,054 | D13: 2,200,000 | E13: 2,350,000 | F13: 5.4
A14: SA | B14: SM관리자 | C14: 76,947 | D14: 1,990,000 | E14: 2,100,000 | F14: 6.7
A15: AP | B15: 웹개발자 | C15: 15,887 | D15: 1,640,000 | E15: 1,850,000 | F15: 4.1
A16: SA | B16: 웹관리자 | C16: 32,931 | D16: 1,490,000 | E16: 1,650,000 | F16: 3.1
A17: AP | B17: 통신관리자 | C17: 31,080 | D17: 1,750,000 | E17: 2,540,000 | F17: 8.4
A18: AP | B18: 통신케이블설치 | C18: 21,786 | D18: 1,840,000 | E18: 1,910,000 | F18: 10.6
A19: AP | B19: 멀티미디어기획자 | C19: 2,258 | D19: 1,790,000 | E19: 1,950,000 | F19: 3.4
A20: SA | B20: 망기획자 | C20: 9,470 | D20: 1,520,000 | E20: 1,300,000 | F20: 9.7
A21: SA | B21: PC수리원 | C21: 37,802 | D21: 1,730,000 | E21: 1,750,000 | F21: 4.9
A22: AP | B22: PC강사 | C22: 21,146 | D22: 1,190,000 | E22: 1,200,000 | F22: 2.8
A23: SA | B23: 정보통신관리자 | C23: 21,222 | D23: 1,460,000 | E23: 3,300,000 | F23: 12.9

Sheet 사용자정의(예제)
A1: [표1]
A2: 과목명 | B2: 성명 | C2: 출석 | D2: 과제 | E2: 중간 | F2: 기말 | G2: 총점
A3: C002 | B3: 김대성 | C3: 18 | D3: 20 | E3: 25 | F3: 20
A4: P007 | B4: 이현실 | C4: 12 | D4: 15 | E4: 20 | F4: 22
A5: C005 | B5: 장충태 | C5: 16 | D5: 14 | E5: 10 | F5: 12
A6: C005 | B6: 심학철 | C6: 20 | D6: 18 | E6: 30 | F6: 28
A7: S006 | B7: 한가영 | C7: 20 | D7: 20 | E7: 28 | F7: 30
A8: S006 | B8: 진명훈 | C8: 18 | D8: 13 | E8: 24 | F8: 8
A9: P001 | B9: 형민석 | C9: 18 | D9: 18 | E9: 22 | F9: 28
A10: P001 | B10: 최준석 | C10: 16 | D10: 18 | E10: 18 | F10: 22
A12: [표2]
A13: 분류코드 | B13: 업무구분 | C13: 종사자수 | D13: 월평균임금 | E13: 전년월평균임금 | F13: 평균경력 | G13: 보너스지급율
A14: SA | B14: IT컨설턴트 | C14: 14,195 | D14: 3,090,000 | E14: 3,000,000 | F14: 5.9
A15: AP | B15: 시스템SW개발자 | C15: 8,130 | D15: 2,560,000 | E15: 2,400,000 | F15: 6.5
A16: SA | B16: 보안관리자 | C16: 5,797 | D16: 2,540,000 | E16: 2,450,000 | F16: 6
A17: SA | B17: NW분석가 | C17: 3,168 | D17: 2,290,000 | E17: 2,450,000 | F17: 4.9
A18: AP | B18: 통신케이블설치 | C18: 21,786 | D18: 1,840,000 | E18: 1,910,000 | F18: 10.6
A19: AP | B19: 멀티미디어기획자 | C19: 2,258 | D19: 1,790,000 | E19: 1,950,000 | F19: 3.4
A20: SA | B20: 망기획자 | C20: 9,470 | D20: 1,520,000 | E20: 1,300,000 | F20: 9.7
A21: SA | B21: PC수리원 | C21: 37,802 | D21: 1,730,000 | E21: 1,750,000 | F21: 4.9
A22: AP | B22: PC강사 | C22: 21,146 | D22: 1,190,000 | E22: 1,200,000 | F22: 2.8
A23: SA | B23: 정보통신관리자 | C23: 21,222 | D23: 1,460,000 | E23: 3,300,000 | F23: 12.9
A25: [표3]
A26: 사용자 | B26: 사용량 | C26: 사용요금
A27: 경인에폭시 | B27: 43
A28: 고려상사 | B28: 265
A29: 고려종합 | B29: 288
A30: SDC | B30: 423
A31: 영원종합 | B31: 584
A32: 한국물산 | B32: 180

Sheet 사용자정의(결과)
A1: [표1]
A2: 과목명 | B2: 성명 | C2: 출석 | D2: 과제 | E2: 중간 | F2: 기말 | G2: 총점
A3: C002 | B3: 김대성 | C3: 18 | D3: 20 | E3: 25 | F3: 20 | G3: =fn총점결과(C3,D3,E3,F3) -> 83
A4: P007 | B4: 이현실 | C4: 12 | D4: 15 | E4: 20 | F4: 22 | G4: =fn총점결과(C4,D4,E4,F4) -> 69
A5: C005 | B5: 장충태 | C5: 16 | D5: 14 | E5: 10 | F5: 12 | G5: 52
A6: C005 | B6: 심학철 | C6: 20 | D6: 18 | E6: 30 | F6: 28 | G6: 96
A7: S006 | B7: 한가영 | C7: 20 | D7: 20 | E7: 28 | F7: 30 | G7: 98
A8: S006 | B8: 진명훈 | C8: 18 | D8: 13 | E8: 24 | F8: 8 | G8: 63
A9: P001 | B9: 형민석 | C9: 18 | D9: 18 | E9: 22 | F9: 28 | G9: 86
A10: P001 | B10: 최준석 | C10: 16 | D10: 18 | E10: 18 | F10: 22 | G10: 74
A12: [표2]
A13: 분류코드 | B13: 업무구분 | C13: 종사자수 | D13: 월평균임금 | E13: 전년월평균임금 | F13: 평균경력 | G13: 보너스지급율
A14: SA | B14: IT컨설턴트 | C14: 14,195 | D14: 3,090,000 | E14: 3,000,000 | F14: 5.9 | G14: =ks보너스지급율결과(D14,E14) -> 10%
A15: AP | B15: 시스템SW개발자 | C15: 8,130 | D15: 2,560,000 | E15: 2,400,000 | F15: 6.5 | G15: =ks보너스지급율결과(D15,E15) -> 5%
A16: SA | B16: 보안관리자 | C16: 5,797 | D16: 2,540,000 | E16: 2,450,000 | F16: 6 | G16: 10%
A17: SA | B17: NW분석가 | C17: 3,168 | D17: 2,290,000 | E17: 2,450,000 | F17: 4.9 | G17: 10%
A18: AP | B18: 통신케이블설치 | C18: 21,786 | D18: 1,840,000 | E18: 1,910,000 | F18: 10.6 | G18: 10%
A19: AP | B19: 멀티미디어기획자 | C19: 2,258 | D19: 1,790,000 | E19: 1,950,000 | F19: 3.4 | G19: 10%
A20: SA | B20: 망기획자 | C20: 9,470 | D20: 1,520,000 | E20: 1,300,000 | F20: 9.7 | G20: 5%
A21: SA | B21: PC수리원 | C21: 37,802 | D21: 1,730,000 | E21: 1,750,000 | F21: 4.9 | G21: 10%
A22: AP | B22: PC강사 | C22: 21,146 | D22: 1,190,000 | E22: 1,200,000 | F22: 2.8 | G22: 10%
A23: SA | B23: 정보통신관리자 | C23: 21,222 | D23: 1,460,000 | E23: 3,300,000 | F23: 12.9 | G23: 10%
A25: [표3]
A26: 사용자 | B26: 사용량 | C26: 사용요금
A27: 경인에폭시 | B27: 43 | C27: =fn에너지요금결과(B27) -> 12,900
A28: 고려상사 | B28: 265 | C28: 26,500
A29: 고려종합 | B29: 288 | C29: 28,800
A30: SDC | B30: 423 | C30: 84,600
A31: 영원종합 | B31: 584 | C31: 116,800
A32: 한국물산 | B32: 180 | C32: 9,000
